Cogmind - Beta 12 X1 @@@ ROGUE MODE // 2022.08.05 @ 01:45:05 Player: Terminus Result: Destroyed by S-43 Plague with Heavy Machine Gun Performance ------------- Evolutions (9) 4500 Regions Visited (34) 6800 Robots Destroyed (793) 3965 Value Destroyed (45046) 45046 Prototype IDs (52) 1040 Alien Tech Used (14) 2800 Bonus (34327) 34327 TOTAL SCORE: 98478 Bonus ------- Triggered High Security 1000 High Alert Combat Kills 26565 Follower Combat Kills 1945 Entered Garrisons 400 Network Hubs Disabled 200 Met Data Miner 300 Met Imprinter 300 Met Warlord at Base 500 MAIN.C Attacked Warlord 500 Warlord Defense Kills 1722 Met Warlord at Research 2000 Scanned by Researcher 500 Friendly Fire -1605 Cogmind --------- Core Integrity 0/1850 Matter 425/425 Energy 1220/1220 System Corruption 0% Temperature Cool (0) Movement Walking (120) Location -1/Command Parts ------- > --- POWER (4) -------- Quantum Reactor Light Quantum Reactor Light Quantum Reactor Light Quantum Reactor > --- PROPULSION (6) --- Myomer Leg Myomer Leg Myomer Leg Myomer Leg Centrium Leg Centrium Leg > --- UTILITY (13) ----- Advanced Heat Sink Advanced Heat Sink High-capacity Storage Unit Experimental Energy Well Experimental Targeting Computer Experimental Targeting Computer Experimental Core Analyzer Experimental Core Analyzer Experimental Core Analyzer Microactuators Microactuators Centrium Light Armor Plating Centrium Light Armor Plating > --- WEAPON (2) ------- Enhanced Nova Cannon > --- INVENTORY (20) --- Light Quantum Reactor Light Quantum Reactor Light Quantum Reactor Light Quantum Reactor Light Quantum Reactor Biometal Heavy Treads Flexi-carbon Leg Myomer Leg Myomer Leg Experimental Energy Well (600) Experimental EM Disruption Field System Shield Microwarp Drive Gamma Rifle Sigix Sheargun Improved Plasma Cutter Core Stripper Peak State ------------ > --- POWER ------------ Vortex Chain Reactor Vortex Chain Reactor > --- PROPULSION ------- Biometal Heavy Treads High-density Centrium Heavy Treads High-density Centrium Heavy Treads > --- UTILITY ---------- Huge Storage Unit Experimental Targeting Computer Experimental Targeting Computer Experimental Core Analyzer Experimental Core Analyzer Experimental Core Analyzer SHELL Armor Experimental EM Disruption Field Advanced Force Field Microwarp Drive > --- WEAPON ----------- Sigix Shearcannon > --- INVENTORY -------- Improved Quantum Reactor Improved Quantum Reactor Improved Quantum Reactor High-density Centrium Heavy Treads Experimental Energy Well Experimental Energy Well Quantum Capacitor Experimental Force Field Subatomic Replicator Sigix Sheargun Enhanced Nova Cannon Enhanced Nova Cannon Improved Plasma Cutter Core Stripper [Rating: 260] Favorites ----------- Power Vortex Chain Reactor Engine Cooled Ion Engine Power Core Neutrino Core Reactor Vortex Chain Reactor Propulsion Improved Heavy Treads Treads Improved Heavy Treads Leg Myomer Leg Wheel High-density Centrium Wheel Utility High-capacity Storage Unit Device Quantum Capacitor Storage High-capacity Storage Unit Processor Experimental Targeting Computer Hackware Improved Hacking Suite Protection Centrium Medium Armor Plating Artifact Microwarp Drive Weapon Heavy Assault Cannon Energy Gun Beam Rifle Energy Cannon Enhanced Nova Cannon Ballistic Gun Light Assault Rifle Ballistic Cannon Heavy Assault Cannon Launcher Rocket Launcher Special Weapon Plasma Cutter Impact Weapon Core Stripper Piercing Weapon CR-A16's Pointy Stick Build | -11 -10 -10 -9 -9 -9 -8 -8 -7 -7 -7 -7 -6 -6 -6 -6 -6 -5 -5 -5 -5 -5 -5 -4 -4 -4 -4 -3 -3 -3 -2 -2 -2 -1 -1 ------- Run | Scr Mat Min Mat Sto Gar Mat Gar Fac Low Low Dat Pro Fac Low Low Zio Pro Fac Ext Cet Arc Hub Fac Upp Upp War Pro Res Qua Res Tes Sec Acc Com Slots Evolved 18 | . . . 2 . . 2 . 2 . . . . 2 . . . . 2 . . . . 2 . . . . 2 . 2 . . 2 . Power 3 | . . . . . . . . . . . . . . . . . . . . . . . 1 . . . . . . 1 . . 1 . Propulsion 4 | . . . 1 . . 1 . . . . . . . . . . . 2 . . . . . . . . . . . . . . . . Utility 11 | . . . 1 . . 1 . 2 . . . . 2 . . . . . . . . . 1 . . . . 2 . 1 . . 1 . Weapon . | . . . . . . . . . . . . . . . . . . . . . . . . . . . . . . . . . . . Parts Attached 438 | 6 10 . 8 10 12 13 7 4 2 . 1 7 17 2 . 2 3 21 11 5 8 8 35 1 2 25 12 21 11 22 34 28 48 42 Power 55 | 1 1 . . 1 1 . 1 . . . . 1 1 . . . . 1 1 . . 1 6 . . 5 1 . . 8 1 3 8 13 Engine 5 | 1 1 . . 1 1 . . . . . . . 1 . . . . . . . . . . . . . . . . . . . . . Core 8 | . . . . . . . 1 . . . . 1 . . . . . 1 1 . . . 2 . . 2 . . . . . . . . Reactor 42 | . . . . . . . . . . . . . . . . . . . . . . 1 4 . . 3 1 . . 8 1 3 8 13 Propulsion 72 | 2 2 . 2 6 1 5 1 . . . . 1 1 . . 1 . 2 . 1 . 2 3 . . . 3 5 2 2 7 . 12 11 Treads 51 | 2 2 . 2 6 1 5 1 . . . . 1 1 . . 1 . 2 . 1 . 2 3 . . . 3 5 2 2 6 . 2 1 Leg 20 | . . . . . . . . . . . . . . . . . . . . . . . . . . . . . . . . . 10 10 Wheel 1 | . . . . . . . . . . . . . . . . . . . . . . . . . . . . . . . 1 . . . Hover . | . . . . . . . . . . . . . . . . . . . . . . . . . . . . . . . . . . . Flight . | . . . . . . . . . . . . . . . . . . . . . . . . . . . . . . . . . . . Utility 213 | 1 3 . 2 1 4 5 1 4 . . . 2 11 . . . 1 15 8 2 5 4 24 1 2 13 7 14 8 11 12 20 20 12 Device 135 | . 2 . 1 . 1 1 . 3 . . . . 3 . . . 1 12 7 1 3 3 18 1 2 11 5 11 6 6 7 12 11 7 Storage 13 | 1 1 . . 1 . 1 . . . . . . 1 . . . . . . . . . . . . . . . . . 3 . 2 3 Processor 9 | . . . . . . . . 1 . . . . 2 . . . . . . . . . 2 . . . 1 . . . . 1 2 . Hackware 7 | . . . . . . 1 . . . . . . . . . . . 1 1 . 2 . . . . . . . . 2 . . . . Protection 37 | . . . 1 . 3 2 1 . . . . 2 5 . . . . 2 . 1 . 1 4 . . 2 1 3 2 3 2 . . 2 Artifact 12 | . . . . . . . . . . . . . . . . . . . . . . . . . . . . . . . . 7 5 . Weapon 98 | 2 4 . 4 2 6 3 4 . 2 . 1 3 4 2 . 1 2 3 2 2 3 1 2 . . 7 1 2 1 1 14 5 8 6 Energy Gun 4 | . . . . . 1 . . . . . . . . . . . . . . . . . . . . . . . . . . . 2 1 Energy Cannon 36 | . . . . . . 1 1 . . . . . . . . . . 1 . 1 1 . . . . . 1 2 1 1 11 4 6 5 Ballistic Gun 5 | 2 1 . 1 . . . . . . . . 1 . . . . . . . . . . . . . . . . . . . . . . Ballistic Cannon 40 | . 3 . 3 1 5 2 2 . 1 . 1 2 3 1 . 1 1 1 1 1 1 1 2 . . 6 . . . . 1 . . . Launcher 5 | . . . . 1 . . 1 . . . . . 1 1 . . . 1 . . . . . . . . . . . . . . . . Special Weapon 4 | . . . . . . . . . 1 . . . . . . . . . 1 . 1 . . . . 1 . . . . . . . . Impact Weapon 3 | . . . . . . . . . . . . . . . . . . . . . . . . . . . . . . . 2 1 . . Slashing Weapon . | . . . . . . . . . . . . . . . . . . . . . . . . . . . . . . . . . . . Piercing Weapon 1 | . . . . . . . . . . . . . . . . . 1 . . . . . . . . . . . . . . . . . Special Melee Weapon . | . . . . . . . . . . . . . . . . . . . . . . . . . . . . . . . . . . . Unidentified Prototypes 35 | . . . 1 1 . 1 . . . . . . 1 . . . . 2 . . . 1 1 . . 2 3 . 2 2 8 6 2 2 Corrupted Parts 3 | . . . . . . . . . . . . . . . . . . . . . . . . . . 2 1 . . . . . . . System Corruption 19 | . . . . . . . . . . . . . . . . . . . . . . . . . . 16 3 . . . . . . . Parts Lost 65 | . 1 . . . 6 1 1 . . . . 3 1 . . . . 2 1 2 1 2 6 . . . 5 3 . 4 . 1 9 16 Power 18 | . 1 . . . 1 . . . . . . . 1 . . . . . . . . . 4 . . . 1 . . 1 . . 3 6 Propulsion 13 | . . . . . . . . . . . . 1 . . . . . . . . . 2 1 . . . 2 2 . . . . 3 2 Utility 27 | . . . . . 3 1 1 . . . . 1 . . . . . 2 1 2 1 . 1 . . . 2 1 . 3 . 1 2 5 Weapon 7 | . . . . . 2 . . . . . . 1 . . . . . . . . . . . . . . . . . . . . 1 3 Highest Loss Streak 9 | . 1 . . . 5 1 1 . . . . 3 1 . . . . 2 1 2 1 1 2 . . . 4 1 . 3 . 1 3 9 To Critical Strikes 4 | . . . . . . . . . . . . . . . . . . . . . . . 1 . . . . . . . . . 2 1 Average Slot Usage (%) 76 | . 97 100 99 100 94 70 72 76 76 76 72 76 73 73 73 72 73 69 69 69 72 69 73 78 78 77 72 74 72 74 69 67 70 84 Engine 3 | . 14 14 11 11 11 9 5 . . . . . . 6 6 6 6 1 . . . . . . . . . . . . . . . . Core 1 | . . . . . . . 3 7 7 7 7 7 5 . . . . 3 5 5 5 2 . 5 5 3 . . . . . . . . Reactor 4 | . . . . . . . . . . . . . . . . . . . . . . 2 7 5 5 6 8 4 4 10 12 8 10 15 Treads 15 | . 27 28 33 33 28 16 18 15 15 15 15 15 12 13 13 13 13 17 17 17 17 16 15 15 15 15 15 18 15 12 13 13 8 1 Leg 1 | . . . . . . . . . . . . . . . . . . . . . . . . . . . . . . . . . 6 19 Device 12 | . 11 14 17 11 11 9 9 15 15 15 15 15 12 13 13 13 13 12 11 11 10 11 10 10 10 10 11 16 19 18 12 14 11 10 Storage 6 | . 14 14 11 11 11 9 9 7 7 7 7 7 6 6 6 6 6 5 5 5 5 5 5 5 5 5 5 4 4 4 4 4 5 7 Processor 8 | . . . . . . . . 7 7 7 7 7 13 13 13 13 13 11 9 5 5 5 10 10 10 10 8 9 9 8 8 11 17 20 Hackware 4 | . . . . . . 9 9 7 7 7 7 7 6 6 6 6 6 3 6 11 11 11 10 10 10 10 10 6 4 5 4 1 . . Protection 5 | . . . 3 11 10 9 9 7 7 7 7 7 6 6 6 6 6 4 5 5 5 5 7 10 10 10 6 4 4 4 4 4 4 5 Energy Cannon 2 | . . . . . . . . . . . . . . . . . . . . . 2 . . . . . 1 8 9 8 7 7 6 4 Ballistic Cannon 6 | . 22 28 22 22 16 8 8 7 6 7 3 6 5 5 6 5 5 4 5 4 2 5 4 5 5 4 3 . . . . . . . Naked Turns . | . . . . . . . . . . . . . . . . . . . . . . . . . . . . . . . . . . . Heaviest Build 227 | 12 35 35 40 63 65 65 71 72 72 72 72 77 93 90 90 90 90 90 89 89 89 90 106 93 93 104 104 128 133 161 204 203 227 206 Greatest Support 255 | 40 40 40 60 69 98 150 150 150 150 150 150 150 150 150 150 150 150 225 225 225 225 230 230 225 225 225 225 210 210 205 255 255 255 168 Greatest Overweight (x) 2 | 2 . . . 1 . . . . . . . . 1 . . . . . . . . . . . . . . . . . 1 . 2 1 Average Overweight (x) . | . . . . . . . . . . . . . . . . . . . . . . . . . . . . . . . . . . . Largest Inventory Capacity 25 | 8 15 15 15 20 20 20 20 20 20 20 20 20 20 20 20 20 20 20 20 20 20 20 20 20 20 20 20 20 20 20 25 25 25 25 Average Capacity 20 | 7 9 15 15 15 20 20 20 20 20 20 20 20 20 20 20 20 20 20 20 20 20 20 20 20 20 20 20 20 20 20 22 25 25 20 Most Carried 25 | 2 13 10 15 16 20 20 20 20 20 20 20 20 20 20 20 20 20 20 20 20 20 20 20 19 19 20 20 20 20 20 25 25 25 25 Average Carried 18 | 1 7 10 12 15 16 19 19 18 19 20 20 17 19 19 20 19 19 19 19 19 19 19 18 18 19 19 18 18 19 19 20 23 21 19 Final Capacity 25 | 8 15 15 15 20 20 20 20 20 20 20 20 20 20 20 20 20 20 20 20 20 20 20 20 20 20 20 20 20 20 20 25 25 25 20 Final Carried 25 | 2 10 10 15 15 20 20 20 20 20 20 20 20 20 20 20 19 20 20 20 20 19 16 19 19 19 20 17 20 19 19 25 25 24 20 Class Distribution -------------------- 31% | Scavenger-Mutant 25% | Mutant 22% | Generator-Mutant 11% | Skirmisher 3% | Hacker-Mutant 3% | Scavenger-Skirmisher Dominant Class ---------------- Mutant | -10/Materials Mutant | -10/Mines Mutant | -9/Materials Mutant | -9/Storage Mutant | -9/Garrison Mutant | -8/Materials Mutant | -8/Garrison Scavenger-Mutant | -7/Factory Scavenger-Mutant | -7/Lower Caves Scavenger-Mutant | -7/Lower Caves Scavenger-Mutant | -7/Data Miner Scavenger-Mutant | -6/Proximity Caves Scavenger-Skirmisher | -6/Factory Skirmisher | -6/Lower Caves Skirmisher | -6/Lower Caves Skirmisher | -6/Zion Skirmisher | -5/Proximity Caves Skirmisher | -5/Factory Mutant | -5/Extension Hacker-Mutant | -5/Cetus Hacker-Mutant | -5/Archives Hacker-Mutant | -5/Hub_04(d) Scavenger-Mutant | -4/Factory Scavenger-Mutant | -4/Upper Caves Scavenger-Mutant | -4/Upper Caves Scavenger-Mutant | -4/Warlord Scavenger-Mutant | -3/Proximity Caves Scavenger-Mutant | -3/Research Scavenger-Mutant | -3/Quarantine Generator-Mutant | -2/Research Generator-Mutant | -2/Testing Generator-Mutant | -2/Section 7 Generator-Mutant | -1/Access Generator-Mutant | -1/Command Resources | -11 -10 -10 -9 -9 -9 -8 -8 -7 -7 -7 -7 -6 -6 -6 -6 -6 -5 -5 -5 -5 -5 -5 -4 -4 -4 -4 -3 -3 -3 -2 -2 -2 -1 -1 ----------- Run | Scr Mat Min Mat Sto Gar Mat Gar Fac Low Low Dat Pro Fac Low Low Zio Pro Fac Ext Cet Arc Hub Fac Upp Upp War Pro Res Qua Res Tes Sec Acc Com Matter Collected 14473 | 239 591 45 371 489 652 1015 744 112 478 78 . 272 179 305 275 20 30 864 703 130 359 568 1789 229 43 974 915 247 277 196 255 536 303 190 Remotely 1984 | . . . 233 . . 92 . . . . . . . . . . . 166 . . 224 . 918 . . 351 . . . . . . . . Salvage Created 53490 | . 706 51 477 694 968 1243 860 195 50 67 . 176 248 214 175 . . 1254 1035 233 387 916 2004 80 66 825 601 930 1834 2109 1987 3742 15593 13770 Parts 1888 | . 52 5 27 53 43 62 51 12 1 5 . 9 11 7 6 . . 45 45 12 21 36 86 . 5 17 30 56 85 69 98 185 451 303 Haulers Intercepted 23 | . 1 . 4 5 . 4 . 1 . . . . 1 . . . . 1 . . . 1 1 . . . 1 . . 1 1 . 1 . Recyclers Shooed 21 | . . . 2 . . 4 . . . . . . . . . . . 1 . . . . 3 . . . . 1 1 . . 1 4 4 Parts Field Recycled . | . . . . . . . . . . . . . . . . . . . . . . . . . . . . . . . . . . . Retrieved Matter . | . . . . . . . . . . . . . . . . . . . . . . . . . . . . . . . . . . . Parts Self-Destructed 75 | . . . . . . . . . 1 5 . 20 . 6 6 . 4 . . . . . . . 5 . 28 . . . . . . . Prevented 3 | . . . . . . . . . 1 2 . . . . . . . . . . . . . . . . . . . . . . . . Kills | -11 -10 -10 -9 -9 -9 -8 -8 -7 -7 -7 -7 -6 -6 -6 -6 -6 -5 -5 -5 -5 -5 -5 -4 -4 -4 -4 -3 -3 -3 -2 -2 -2 -1 -1 ------- Run | Scr Mat Min Mat Sto Gar Mat Gar Fac Low Low Dat Pro Fac Low Low Zio Pro Fac Ext Cet Arc Hub Fac Upp Upp War Pro Res Qua Res Tes Sec Acc Com Combat Hostiles Destroyed 720 | . 16 3 4 10 12 28 24 4 1 2 . 5 7 7 4 . . 17 20 5 4 17 24 1 1 14 12 16 22 28 22 45 171 174 Guns 32 | . 4 . . . . . . . . . . . . . . . . . . . . . . . . . . . . . . . 28 . Cannons 609 | . 12 3 4 10 12 28 20 4 1 2 . 5 3 3 4 . . 11 20 4 4 16 23 1 1 14 12 16 21 23 16 24 123 169 AOE 24 | . . . . . . . 4 . . . . . 4 4 . . . 6 . . . 1 1 . . . . . . . . . 1 3 Classes Destroyed 25 | . 7 . 2 1 1 3 2 . . . . . . . . . . . . . . 1 1 . . 3 . . . 2 2 . . . Worker 27 | . 2 1 2 2 . . . . . . . . . . . . . 1 . . . 2 2 . . . . 2 . . 1 . 7 5 Builder 19 | . . . . 2 . 1 . 1 . . . . . . . . . 3 1 . . . 1 . . . . . . . . 2 8 . Tunneler 3 | . 1 . . . . . . . . . . . . . . . . . . . . . . . . . . 1 . . . . 1 . Hauler 23 | . 1 . 4 5 . 4 . 1 . . . . 1 . . . . 1 . . . 1 1 . . . 1 . . 1 1 . 1 . Recycler 33 | . 2 . 4 1 . 4 . . . . . . . . . . . 4 1 . . . 8 . . . . . 1 1 . . 5 2 Mechanic 21 | . . . . . . . . . . . . . . . . . . . . . . . 1 . . 1 . . . . . . 7 12 Operator 14 | . . . 1 3 . . . . . . . . . . . . . 1 1 . 5 2 . . . . . . 1 . . . . . Watcher 36 | . 3 . 1 2 . 5 . . . . . . 1 . . . . 3 . 1 . 2 1 . . . . 1 3 1 1 2 7 2 Swarmer 76 | . 6 3 . . 4 3 7 . . . . . 4 4 . . . 1 4 . . . . . . . . 10 . 12 2 4 6 6 Cutter 4 | . . . . . . . 4 . . . . . . . . . . . . . . . . . . . . . . . . . . . Saboteur 18 | . . . . . . . . . . . . . . . . . . . . . . . . . . 2 . . . . . . 5 11 Grunt 270 | . 10 . 3 5 4 15 4 2 1 2 . 2 . 2 4 . . 11 6 . . 7 9 . . 9 5 . 10 2 5 8 77 67 Brawler 23 | . . . . . . 2 . . . . . . . . . . . . . . . . . . . . . . 1 1 . . 7 12 Duelist 27 | . . . . . . 1 . . . . . 1 . . . . . . . . . . . . . . . . 1 . . . 12 12 Protector 13 | . . . . . . . . . . . . . . . . . . . . . . . . . . 1 . . . . . . 4 8 Researcher 2 | . . . . . . . . . . . . . . . . . . . . . . . . . . . . . . . 1 1 . . Sentry 66 | . . . 1 6 3 6 4 . . . . . 2 1 . . . . 7 . 4 5 . 1 1 . . . . 2 4 5 12 2 Demolisher 2 | . . . . . . . . . . . . . . . . . . . . . . . . . . . . . . 2 . . . . Specialist 3 | . . . . . . . . . . . . . . . . . . . . . . 1 1 . . 1 . . . . . . . . Hunter 53 | . . . . . . 1 2 . . . . 1 1 . . . . 4 1 1 . 2 8 . . . 4 2 3 2 . 4 11 6 Programmer 101 | . . . . . . . 2 2 . . . . . . . . . 1 . 1 . 2 6 . . 1 2 3 7 . 10 16 23 25 Behemoth 5 | . . . . . 1 . . . . . . 1 . . . . . . 1 . . . . . . . 1 1 . . . . . . Cetus Guard 3 | . . . . . . . . . . . . . . . . . . . . 3 . . . . . . . . . . . . . . S7 Guard 4 | . . . . . . . . . . . . . . . . . . . . . . . . . . . . . . . . 4 . . Enhanced Demolisher 1 | . . . . . . . . . . . . . . . . . . . . . . . . . . 1 . . . . . . . . Investigator 2 | . . . . . . . . . . . . . . . . . . . . . . . . . . . . . . . . . 1 1 Striker 32 | . . . . . . . . . . . . . . . . . . . . . . . . . . . . . . 3 . 4 11 14 Executioner 18 | . . . . . . . . . . . . . . . . . . . . . . . . . . . . . . 4 . . 3 11 Fortress 1 | . . . . . . . . . . . . . . . . . . . . . . . . . . . . . . . 1 . . . Decomposer 1 | . . . . . . . . . . . . . . 1 . . . . . . . . . . . . . . . . . . . . Packrat 1 | . . . . . . . . . . . . . . . . . . . . . . . . 1 . . . . . . . . . . Thug 3 | . . . . . . . . . . . . . . . . . . . 3 . . . . . . . . . . . . . . . Savage 1 | . . . . . . . 1 . . . . . . . . . . . . . . . . . . . . . . . . . . . Wizard 1 | . . . . . . . . . . . . . . . . . . . . . . . . . . . . . . 1 . . . . Best Kill Streak 58 | . 5 3 7 6 4 5 5 3 1 2 . 3 4 4 3 . . 12 4 4 2 6 7 1 1 4 3 6 5 19 3 8 58 46 Combat Bots Only 40 | . 4 3 2 3 4 5 5 1 1 2 . 3 4 4 3 . . 10 3 3 2 4 5 1 1 3 3 6 4 18 3 8 40 38 Max Kills in Single Turn 3 | . 2 1 1 2 1 1 3 1 1 1 . 1 2 2 1 . . 2 1 1 1 2 3 1 1 1 1 1 1 1 1 1 3 3 Gunslinging . | . . . . . . . . . . . . . . . . . . . . . . . . . . . . . . . . . . . Exploded 3 | . . . . . . . 3 . . . . . 2 2 . . . 2 . . . 1 1 . . . . . . . . . 1 3 Melee . | . . . . . . . . . . . . . . . . . . . . . . . . . . . . . . . . . . . Uniques/NPCs Destroyed . | . . . . . . . . . . . . . . . . . . . . . . . . . . . . . . . . . . . Combat | -11 -10 -10 -9 -9 -9 -8 -8 -7 -7 -7 -7 -6 -6 -6 -6 -6 -5 -5 -5 -5 -5 -5 -4 -4 -4 -4 -3 -3 -3 -2 -2 -2 -1 -1 -------- Run | Scr Mat Min Mat Sto Gar Mat Gar Fac Low Low Dat Pro Fac Low Low Zio Pro Fac Ext Cet Arc Hub Fac Upp Upp War Pro Res Qua Res Tes Sec Acc Com Damage Taken 41167 | . 444 94 178 232 1455 2056 1032 242 18 20 . 676 385 211 274 . 20 1637 995 1038 414 1717 3719 75 . 266 2301 1105 524 2349 836 2077 7528 7249 Core 3881 | . 60 8 . 49 137 114 80 34 . . . 55 5 . . . . 3 50 50 . 143 57 . . . 50 61 11 165 34 587 1782 346 Absorbed by Shields 12508 | . . . . . . . . . . . . . . . . . . . 21 . . . . . . . . 487 481 1080 828 1471 6080 2060 Reduced by Siege Mode 2835 | . . . . . 57 285 149 . 5 . . 66 36 2 41 . . 208 49 106 28 147 432 13 . 28 218 70 47 230 42 83 290 203 Regen/Repaired (Parts) 9100 | . 195 . . . . 1201 . . . . . . 477 . . . . . . . . . 674 . . 708 . 215 . . 455 601 2776 1798 Core Remaining (%) 76 | 100 . 72 . . 53 . 64 . . . . 87 . . . . 99 . . . . 75 . . . . 90 . 77 . . 47 . . Volleys Fired 2844 | . 45 5 34 49 176 120 102 30 11 5 . 23 27 18 23 . 2 83 75 40 68 71 122 15 1 59 72 90 129 125 100 237 573 314 Largest 2 | . 2 2 2 2 2 1 1 1 1 1 . 1 1 1 1 . 1 1 1 1 2 1 1 1 1 1 1 1 2 1 1 1 1 2 Hottest 240 | . 78 78 78 78 78 60 60 60 60 60 . 60 60 60 60 . 60 60 60 90 60 60 75 75 75 75 90 113 226 120 120 120 180 240 Shots Fired 3087 | . 92 11 68 101 230 120 103 30 12 5 . 25 27 18 23 . 2 83 75 40 80 72 122 15 1 59 68 91 131 125 102 238 573 345 Gun 255 | . 20 . . . 116 . . . . . . . . . . . . . . . . . . . . . . . . . . . 119 . Cannon 2798 | . 72 11 68 101 114 120 101 30 7 5 . 25 25 16 23 . 2 75 75 40 66 72 122 15 1 58 68 91 131 125 102 238 454 345 Launcher 14 | . . . . . . . 2 . . . . . 2 2 . . . 8 . . . . . . . . . . . . . . . . Special 20 | . . . . . . . . . 5 . . . . . . . . . . . 14 . . . . 1 . . . . . . . . Kinetic 1227 | . 92 11 68 101 114 120 76 30 7 5 . 25 25 16 23 . 2 71 75 22 26 72 122 15 1 58 50 . . . . . . . Thermal 1138 | . . . . . 116 . 25 . . . . . . . . . . 4 . 18 54 . . . . 1 18 91 131 125 78 138 229 110 Explosive 14 | . . . . . . . 2 . . . . . 2 2 . . . 8 . . . . . . . . . . . . . . . . Electromagnetic 223 | . . . . . . . . . . . . . . . . . . . . . . . . . . . . . . . 24 100 99 . Slashing 480 | . . . . . . . . . . . . . . . . . . . . . . . . . . . . . . . . . 245 235 Robot Hit Streak 95 | . 10 10 12 7 62 13 16 6 7 4 . 14 10 11 12 . . 37 13 14 16 14 20 11 3 7 55 27 23 42 70 34 95 79 Robot Miss Streak 7 | . 2 3 3 3 2 2 2 4 1 1 . 2 2 . 1 . . 2 3 2 3 2 3 1 . 3 1 2 2 2 2 2 7 4 Penetration Max 1 | . . . . . . . . . . . . . . . . . . 1 1 . 1 1 1 . . 1 . . . . . . 1 1 Secondary Targets 2 | . 2 . . . . . . . . . . . . . . . . . . . . . . . . . . . . . . . . . Max Gunslinging Chain 1 | . 1 . . . . . . . . . . . . . . . . . . . . . . . . . . . . . . . . . Capacitor 1458 | . . . . . . . . . . . . . . . . . . . . . . . . . . . 18 91 129 125 102 225 521 247 Shots Hit Robots 2305 | . 50 4 45 58 173 101 65 12 6 4 . 19 18 7 10 . 1 61 55 33 63 61 94 6 1 46 56 65 91 95 72 144 489 300 Core Hits 2026 | . 31 5 17 27 61 38 33 7 1 2 . 6 12 11 4 . . 46 32 9 27 30 44 2 1 15 17 26 49 41 31 51 590 760 Critical Kills 11 | . . . . . . . . . . . . . . . . . . . . . . . . . . . . . . 3 1 1 4 2 Critical Parts Destroyed . | . . . . . . . . . . . . . . . . . . . . . . . . . . . . . . . . . . . Critical Strikes 208 | . . . 1 5 16 12 4 3 . . . 5 2 1 1 . . 8 5 3 2 9 16 2 . 4 7 . . 3 2 5 41 51 Burn 14 | . . . . . 14 . . . . . . . . . . . . . . . . . . . . . . . . . . . . . Meltdown 11 | . . . . . . . . . . . . . . . . . . . . . . . . . . . . . . 3 1 1 4 2 Blast 91 | . . . 1 5 2 12 4 3 . . . 5 2 1 1 . . 8 5 3 1 9 16 2 . 4 7 . . . . . . . Corrupt 8 | . . . . . . . . . . . . . . . . . . . . . . . . . . . . . . . 1 4 3 . Sever 84 | . . . . . . . . . . . . . . . . . . . . . 1 . . . . . . . . . . . 34 49 Melee Attacks 7 | . . . . . . . . . . . . . . . . . 2 . . . . . . . . . . . . . 4 1 . . Kinetic 5 | . . . . . . . . . . . . . . . . . . . . . . . . . . . . . . . 4 1 . . Impact . | . . . . . . . . . . . . . . . . . . . . . . . . . . . . . . . . . . . Slashing . | . . . . . . . . . . . . . . . . . . . . . . . . . . . . . . . . . . . Piercing 2 | . . . . . . . . . . . . . . . . . 2 . . . . . . . . . . . . . . . . . Sneak Attacks 2 | . . . . . . . . . . . . . . . . . . . . . . . . . . . . . . . 1 1 . . Combat Hostiles . | . . . . . . . . . . . . . . . . . . . . . . . . . . . . . . . . . . . Follow-up Attacks . | . . . . . . . . . . . . . . . . . . . . . . . . . . . . . . . . . . . Damage Inflicted 129543 | . 940 132 996 1477 3081 5202 3080 780 57 230 . 930 1098 694 540 . 35 4031 3181 1448 2312 3485 6410 391 56 3663 3457 2666 3824 4464 3193 5844 29897 31949 Guns 7988 | . 115 . . . 1554 . . . . . . . . . . . . . . . . . . . . . . . . . . . 6319 . Cannons 115766 | . 790 113 988 1460 1527 5177 2844 718 57 230 . 930 704 380 517 . . 2702 3014 1448 2171 2982 5152 391 56 3652 3457 2645 3824 4460 3089 5692 23117 31479 Explosions 4933 | . . . . . . . 236 62 . . . . 376 285 . . . 1291 157 . . 461 1237 . . . . . . . . . 358 470 Melee 242 | . . . . . . . . . . . . . . . . . 35 . . . . . . . . . . . . . 55 152 . . Ramming 501 | . 35 19 8 17 . 25 . . . . . . 18 29 23 . . 38 10 . 39 42 21 . . . . 21 . 4 49 . 103 . Kinetic 38750 | . 905 113 988 1460 1527 5177 2170 718 57 230 . 930 704 380 517 . . 2594 3014 748 1385 2982 5152 391 56 3652 2693 . . . 55 152 . . Thermal 32312 | . . . . . 1554 . 674 . . . . . 110 . . . . 108 157 700 888 44 745 . . 11 764 2645 3824 4460 2288 2753 7508 3079 Explosive 3040 | . . . . . . . 236 . . . . . 266 285 . . . 1291 . . . . 492 . . . . . . . . . . 470 Electromagnetic 7921 | . . . . . . . . 62 . . . . . . . . . . . . . 417 . . . . . . . . 801 2939 3702 . Impact . | . . . . . . . . . . . . . . . . . . . . . . . . . . . . . . . . . . . Slashing 46984 | . . . . . . . . . . . . . . . . . . . . . . . . . . . . . . . . . 18584 28400 Piercing 35 | . . . . . . . . . . . . . . . . . 35 . . . . . . . . . . . . . . . . . Highest Corruption 23 | . 2 2 . 2 2 . 4 3 3 3 3 3 2 2 2 2 . . . . . 1 5 5 5 17 23 3 6 . 4 6 . . Average Corruption 4 | . 2 2 . 2 2 . 3 1 3 3 3 3 2 2 2 2 . . . . . 1 2 5 5 14 19 2 4 . 2 5 . . Corruption Purged . | . . . . . . . . . . . . . . . . . . . . . . . . . . . . . . . . . . . Corruption Blocked 60 | . . . . . . . . . . . . . . . . . . . . . . . . . . 8 . . . 52 . . . . Effects 365 | . 12 12 . 14 18 . 5 2 9 12 4 11 4 5 6 . . . . . . 2 14 15 10 31 49 5 41 . 24 60 . . Message Errors 77 | . 2 1 . 3 8 . 1 . 1 4 2 2 2 . 1 . . . . . . 1 8 4 3 4 4 1 5 . 3 17 . . Matter Fused 101 | . 4 3 . 4 5 . 1 . . 2 . 1 . 3 2 . . . . . . . 4 5 4 9 21 1 13 . 7 12 . . Heat Flow Errors 41 | . 1 4 . 1 1 . . 1 3 2 . 2 . . 3 . . . . . . . 1 2 . 3 5 . 4 . 3 5 . . Energy Discharges 36 | . 2 1 . 1 1 . 1 . 1 1 2 . 1 1 . . . . . . . . . . 1 4 2 . 6 . 2 9 . . Parts Rejected 4 | . . . . . . . . . . . . . . . . . . . . . . . . . . 2 . . . . 1 1 . . Data Loss (minor) 44 | . . 2 . 1 1 . 1 1 2 2 . 4 . 1 . . . . . . . . 1 3 2 3 7 1 2 . 4 6 . . Data Loss (major) 15 | . . . . 1 1 . . . . . . . . . . . . . . . . . . 1 . 2 . . 3 . 2 5 . . Misfires 23 | . 2 1 . 3 . . 1 . 1 . . 2 . . . . . . . . . 1 . . . 1 3 1 3 . 2 2 . . Alerts 10 | . 1 . . . . . . . 1 1 . . 1 . . . . . . . . . . . . . . 1 3 . . 2 . . Misdirections 2 | . . . . . . . . . . . . . . . . . . . . . . . . . . 2 . . . . . . . . Weapon Failures 12 | . . . . . 1 . . . . . . . . . . . . . . . . . . . . 1 7 . 2 . . 1 . . Overload Shots 26 | . . . . . . . . . . . . . . . . . . . . 10 . . . . . . 11 5 . . . . . . Effects 1 | . . . . . . . . . . . . . . . . . . . . . . . . . . . 1 . . . . . . . Heat Surge 1 | . . . . . . . . . . . . . . . . . . . . . . . . . . . 1 . . . . . . . Overflow Damage 3573 | . 19 3 16 14 6 391 214 54 . 27 . 33 51 13 64 . . 158 65 75 85 148 423 8 . 336 248 42 109 139 192 207 266 167 Projectiles 3294 | . 19 3 16 14 6 391 178 50 . 27 . 33 51 9 64 . . 130 56 75 85 138 305 8 . 336 248 42 109 139 173 207 215 167 Explosions 237 | . . . . . . . 36 4 . . . . . . . . . 28 9 . . 10 118 . . . . . . . . . 32 . Melee 42 | . . . . . . . . . . . . . . 4 . . . . . . . . . . . . . . . . 19 . 19 . Knockbacks 188 | . 8 2 3 3 8 33 13 3 . 2 . 4 1 . 5 . . 15 15 4 1 13 32 . . 8 14 . . . 1 . . . Impact 2 | . 1 . . . . . . . . . . . . . . . . . . . . . . . . . . . . . 1 . . . Kinetic 165 | . 7 1 3 3 7 26 11 3 . 2 . 4 1 . 5 . . 15 11 4 1 10 29 . . 8 14 . . . . . . . Secondary 21 | . . 1 . . 1 7 2 . . . . . . . . . . . 4 . . 3 3 . . . . . . . . . . . Self-Inflicted Damage 434 | . . . . . . . . 24 . . . . . . . . . 145 . . . 131 . . . . . . . . . . 134 . Shots 10 | . . . . . . . . 1 . . . . . . . . . 6 . . . 2 . . . . . . . . . . 1 . Rammed 54 | . 6 3 1 3 . 5 . . . . . . 2 5 2 . . 3 1 . 4 6 3 . . . . 2 . 2 1 . 5 . Targets Rammed 54 | . 6 3 1 3 . 5 . . . . . . 2 5 2 . . 3 1 . 4 6 3 . . . . 2 . 2 1 . 5 . Kicked . | . . . . . . . . . . . . . . . . . . . . . . . . . . . . . . . . . . . Crushed . | . . . . . . . . . . . . . . . . . . . . . . . . . . . . . . . . . . . Highest Temperature 367 | . 177 222 367 73 135 18 9 121 244 189 . 97 2 . 262 . . 23 8 91 82 40 256 259 . 243 188 84 156 221 168 143 158 158 Average Temperature 99 | . 79 85 175 53 70 13 9 74 111 97 . 45 2 . 110 . . 9 8 41 46 14 51 118 . 106 52 31 54 53 39 71 114 126 Received Heat Transfer 4829 | . 69 . 51 66 333 927 135 45 9 9 . 87 48 24 121 . 9 321 189 63 45 207 312 9 . 12 207 58 47 51 72 134 609 560 Siege Activations 168 | . . . . . 1 12 8 2 1 1 . 2 4 3 2 . . 11 8 4 3 13 10 1 1 5 6 5 11 6 12 16 17 3 Total Turns 3973 | . . . . . 44 266 128 16 23 9 . 55 36 33 32 . . 361 247 88 56 239 275 17 8 139 114 64 152 97 121 201 561 591 Longest Duration 451 | . . . . . 44 49 39 13 23 9 . 30 14 16 17 . . 106 104 60 20 85 70 17 8 90 28 30 34 44 42 47 264 451 Robots Corrupted 40 | . . . . . . . . . . . . . . . . . . . . . . . . . . . . . . . 5 20 15 . Combat Hostiles 40 | . . . . . . . . . . . . . . . . . . . . . . . . . . . . . . . 5 20 15 . Parts Fried 85 | . . . . . . . . . . . . . . . . . . . . . . 2 . . . 2 . . . 1 12 29 39 . Impact Corruptions 4 | . . . . . . 1 . . . . . . . 1 . . . . . . . . . . . . . . . . 1 . 1 . Robots Melted 16 | . . . . . . . . . . . . . . . . . . . . 1 . . . . . . . . 1 5 1 1 5 2 Combat Hostiles 13 | . . . . . . . . . . . . . . . . . . . . 1 . . . . . . . . 1 5 . 1 3 2 Parts Melted 89 | . . . . . 5 . . . . . . . . . . . . . 1 1 3 . 1 . . . 1 6 14 14 9 9 19 6 Heat Transferred 31102 | . . . . . 4995 . 925 . . . . . 50 . . . . 148 50 746 1406 50 500 . . 37 709 2507 3404 3589 1739 2109 5548 2590 Parts Sabotaged 3 | . . . . . . . . . . . . . . . . . . . . . . . . . . . . . . . . . 1 2 Parts Stolen . | . . . . . . . . . . . . . . . . . . . . . . . . . . . . . . . . . . . Parts Stripped . | . . . . . . . . . . . . . . . . . . . . . . . . . . . . . . . . . . . Power Chain Reactions 2 | . . . . . . . . . . . . . . . . . . . . . . 1 . . . . . . . . . . 1 . Missiles Intercepted . | . . . . . . . . . . . . . . . . . . . . . . . . . . . . . . . . . . . Alert | -11 -10 -10 -9 -9 -9 -8 -8 -7 -7 -7 -7 -6 -6 -6 -6 -6 -5 -5 -5 -5 -5 -5 -4 -4 -4 -4 -3 -3 -3 -2 -2 -2 -1 -1 ------- Run | Scr Mat Min Mat Sto Gar Mat Gar Fac Low Low Dat Pro Fac Low Low Zio Pro Fac Ext Cet Arc Hub Fac Upp Upp War Pro Res Qua Res Tes Sec Acc Com Peak Influence 8412 | . 264 122 137 528 1023 705 1447 894 . . . . 291 . . . . 300 985 571 369 533 809 . . . . 374 366 685 465 775 6072 8412 Initial 3885 | . . 52 . 57 232 498 333 759 . . . . 46 . . . . 25 70 549 228 58 261 . . . . 9 162 158 335 121 375 3885 Average 1030 | . 116 53 64 340 621 459 891 787 . . . . 178 . . . . 173 441 517 297 126 406 . . . . 155 203 378 237 528 2964 6428 Maximum Alert Level 5 | . 1 . . 2 3 3 4 3 . . . . 1 . . . . 1 3 2 1 2 3 . . . . 1 1 2 2 3 5 5 Low Security (%) 28 | 100 95 100 100 9 . . . . . . . . 70 . . . . 69 14 . 16 79 8 . . . . 66 53 7 45 4 . . Level 1 23 | . 4 . . 56 12 35 5 . . . . . 29 . . . . 30 30 . 83 17 39 . . . . 33 46 50 44 8 10 . Level 2 24 | . . . . 34 54 63 25 11 . . . . . . . . . . 42 100 . 3 39 . . . . . . 42 9 82 11 . Level 3 7 | . . . . . 32 . 35 88 . . . . . . . . . . 12 . . . 12 . . . . . . . . 5 7 . Level 4 3 | . . . . . . . 33 . . . . . . . . . . . . . . . . . . . . . . . . . 13 . Level 5 1 | . . . . . . . . . . . . . . . . . . . . . . . . . . . . . . . . . 2 17 High Security 11 | . . . . . . . . . . . . . . . . . . . . . . . . . . . . . . . . . 54 82 Max Security . | . . . . . . . . . . . . . . . . . . . . . . . . . . . . . . . . . . . Sterilizations 1 | . . . . . . . . . . . . . . . . . . . . . . . . . . . . . . . . . 1 . Squads Dispatched 165 | . 4 . 2 4 . 6 . 5 . . . . 2 . . . . 5 3 . . 7 10 . . . . 4 6 2 9 12 45 39 Investigation 25 | . 3 . 1 1 . 3 . . . . . . 2 . . . . 3 1 . . 1 4 . . . . 2 1 . . 2 1 . Extermination 26 | . . . . . . . . 2 . . . . . . . . . 1 . . . 1 3 . . . . 1 4 . 4 6 3 1 Reinforcement 28 | . 1 . 1 3 . 1 . 1 . . . . . . . . . . 2 . . 5 2 . . . . 1 1 2 2 2 2 2 Assault 72 | . . . . . . . . 2 . . . . . . . . . . . . . . 1 . . . . . . . . 2 31 36 Garrison 14 | . . . . . . 2 . . . . . . . . . . . 1 . . . . . . . . . . . . 3 . 8 . Intercept . | . . . . . . . . . . . . . . . . . . . . . . . . . . . . . . . . . . . Searches Triggered . | . . . . . . . . . . . . . . . . . . . . . . . . . . . . . . . . . . . Data Miner Redirects 11 | . . . . . . . . . . . . . 2 . . . . . . . . 1 1 . . . . . . . . 2 4 1 Construction Impeded 2 | . . . . . . . . . . . . . . . . . . . 1 . . 1 . . . . . . . . . . . . Haulers Reinforced 4 | . . . . . . . . 1 . . . . . . . . . . . . . 1 1 . . . . . . 1 . . . . Active Scanning Responses . | . . . . . . . . . . . . . . . . . . . . . . . . . . . . . . . . . . . Cargo Convoy Interrupts . | . . . . . . . . . . . . . . . . . . . . . . . . . . . . . . . . . . . Stealth | -11 -10 -10 -9 -9 -9 -8 -8 -7 -7 -7 -7 -6 -6 -6 -6 -6 -5 -5 -5 -5 -5 -5 -4 -4 -4 -4 -3 -3 -3 -2 -2 -2 -1 -1 --------- Run | Scr Mat Min Mat Sto Gar Mat Gar Fac Low Low Dat Pro Fac Low Low Zio Pro Fac Ext Cet Arc Hub Fac Upp Upp War Pro Res Qua Res Tes Sec Acc Com Distress Signals 44 | . . . 3 1 . 1 . . . . . . . . . . . 1 3 1 . 1 1 . . . . 1 3 8 1 2 10 7 Communications Jammed 4 | . . . . . . . . . . . . . . . . . . . . . . . 2 . . . . . . 2 . . . . Distress Signals 4 | . . . . . . . . . . . . . . . . . . . . . . . 2 . . . . . . 2 . . . . Times Spotted 1203 | . 22 3 6 29 14 39 27 9 3 3 . 7 8 7 4 . 2 27 44 7 27 24 27 1 . 67 13 19 34 38 28 58 359 247 Peak Tracking Total 30 | . 5 3 2 6 5 5 5 4 3 3 . 4 1 4 3 . 1 7 7 5 2 5 4 1 . 11 3 5 4 9 3 8 30 16 Tactical Retreats 58 | . . . . . 1 1 6 1 1 . . . . . . . . . 2 . . 2 . . . . 1 1 . . 1 1 32 8 Traps | -11 -10 -10 -9 -9 -9 -8 -8 -7 -7 -7 -7 -6 -6 -6 -6 -6 -5 -5 -5 -5 -5 -5 -4 -4 -4 -4 -3 -3 -3 -2 -2 -2 -1 -1 ------- Run | Scr Mat Min Mat Sto Gar Mat Gar Fac Low Low Dat Pro Fac Low Low Zio Pro Fac Ext Cet Arc Hub Fac Upp Upp War Pro Res Qua Res Tes Sec Acc Com Traps Triggered 23 | . 3 . . 2 3 2 . . . . . . 3 . . . . 1 . . . 2 1 . . . . 1 1 . 1 . 2 1 Indirectly . | . . . . . . . . . . . . . . . . . . . . . . . . . . . . . . . . . . . Trap Hack Attempts . | . . . . . . . . . . . . . . . . . . . . . . . . . . . . . . . . . . . Triggered . | . . . . . . . . . . . . . . . . . . . . . . . . . . . . . . . . . . . Disarmed . | . . . . . . . . . . . . . . . . . . . . . . . . . . . . . . . . . . . Reprogrammed . | . . . . . . . . . . . . . . . . . . . . . . . . . . . . . . . . . . . Reused . | . . . . . . . . . . . . . . . . . . . . . . . . . . . . . . . . . . . Traps Extracted . | . . . . . . . . . . . . . . . . . . . . . . . . . . . . . . . . . . . Installed . | . . . . . . . . . . . . . . . . . . . . . . . . . . . . . . . . . . . Triggered 12 | . . . . . . . . . . 1 . 1 . . . . . . . . . . . . . 10 . . . . . . . . Machines | -11 -10 -10 -9 -9 -9 -8 -8 -7 -7 -7 -7 -6 -6 -6 -6 -6 -5 -5 -5 -5 -5 -5 -4 -4 -4 -4 -3 -3 -3 -2 -2 -2 -1 -1 ---------- Run | Scr Mat Min Mat Sto Gar Mat Gar Fac Low Low Dat Pro Fac Low Low Zio Pro Fac Ext Cet Arc Hub Fac Upp Upp War Pro Res Qua Res Tes Sec Acc Com Machines Disabled 90 | . 1 . . 2 5 2 4 3 1 . . . 5 . . . . 1 5 . 1 8 17 . . . . . 6 1 4 13 6 5 Max in Single Turn 8 | . 1 . . 1 2 1 1 2 1 . . . 4 . . . . 1 3 . 1 6 8 . . . . . 1 1 1 1 1 2 Garrison Access 7 | . . . . . . . . . . . . . 1 . . . . 2 . . . . 1 . . . . . 1 1 . . 1 . Garrison Relay 2 | . . . . . 2 . . . . . . . . . . . . . . . . . . . . . . . . . . . . . Phase Generator 2 | . . . . . 1 . . . . . . . . . . . . . . . . . . . . . . . . . . . . 1 Network Hub 1 | . . . . . . . . . . . . . . . . . . . . . . 1 . . . . . . . . . . . . Energy Cycler 4 | . . . . . . . . . . . . . . . . . . . 4 . . . . . . . . . . . . . . . Machines Sabotaged . | . . . . . . . . . . . . . . . . . . . . . . . . . . . . . . . . . . . Garrisons Compromised . | . . . . . . . . . . . . . . . . . . . . . . . . . . . . . . . . . . . Overloaded Fab Kills . | . . . . . . . . . . . . . . . . . . . . . . . . . . . . . . . . . . . Hacking | -11 -10 -10 -9 -9 -9 -8 -8 -7 -7 -7 -7 -6 -6 -6 -6 -6 -5 -5 -5 -5 -5 -5 -4 -4 -4 -4 -3 -3 -3 -2 -2 -2 -1 -1 --------- Run | Scr Mat Min Mat Sto Gar Mat Gar Fac Low Low Dat Pro Fac Low Low Zio Pro Fac Ext Cet Arc Hub Fac Upp Upp War Pro Res Qua Res Tes Sec Acc Com Machines Accessed 117 | . 9 . 5 6 3 14 4 3 . 1 4 . 6 . . . . 6 2 . . 6 8 . . 1 . 7 8 . 10 9 4 1 Terminals 80 | . 7 . 5 5 3 10 4 2 . . . . 3 . . . . 1 2 . . 6 2 . . . . 4 6 . 8 8 3 1 Fabricators 9 | . . . . . . . . 1 . . . . 1 . . . . 1 . . . . 3 . . . . 2 . . 1 . . . Repair Stations 10 | . 1 . . . . 2 . . . . . . 1 . . . . 2 . . . . 2 . . . . 1 . . 1 . . . Recycling Units 1 | . 1 . . . . . . . . . . . . . . . . . . . . . . . . . . . . . . . . . Scanalyzers 3 | . . . . . . 1 . . . . . . . . . . . . . . . . . . . . . . 1 . . 1 . . Garrison Access 8 | . . . . 1 . 1 . . . . . . 1 . . . . 2 . . . . 1 . . . . . 1 . . . 1 . Total Hacks 395 | . 27 . 23 18 6 47 8 7 . 1 28 . 14 . . . . 14 6 . . 23 30 . . 5 . 31 26 . 38 32 10 1 Successful 233 | . 17 . 13 10 3 31 3 3 . 1 28 . 8 . . . . 5 1 . . 12 22 . . 5 . 16 15 . 22 17 1 . Failed 161 | . 9 . 10 8 3 16 5 4 . . . . 6 . . . . 9 5 . . 11 8 . . . . 15 11 . 16 15 9 1 Catastrophic 18 | . 1 . . 1 . 1 . . . . . . . . . . . 1 . . . 2 1 . . . . . 3 . . 4 3 1 Database Lockouts 1 | . 1 . . . . . . . . . . . . . . . . . . . . . . . . . . . . . . . . . Manual 164 | . 21 . 11 10 . 14 . 3 . . . . 4 . . . . . 3 . . 16 12 . . 1 . 13 12 . 22 15 7 . Terminals 264 | . 22 . 23 17 6 29 8 5 . . . . 6 . . . . 3 6 . . 23 6 . . . . 21 22 . 32 26 8 1 Fabricators 32 | . . . . . . . . 2 . . . . 3 . . . . 2 . . . . 15 . . . . 8 . . 2 . . . Repair Stations 37 | . 4 . . . . 11 . . . . . . 4 . . . . 4 . . . . 8 . . . . 2 . . 4 . . . Recycling Units 1 | . 1 . . . . . . . . . . . . . . . . . . . . . . . . . . . . . . . . . Scanalyzers 15 | . . . . . . 6 . . . . . . . . . . . . . . . . . . . . . . 3 . . 6 . . Garrison Access 12 | . . . . 1 . 1 . . . . . . 1 . . . . 5 . . . . 1 . . . . . 1 . . . 2 . Terminal Hacks 120 | . 5 . 8 6 3 10 3 1 . 1 28 . . . . . . . 1 . . 10 3 . . 5 . 7 8 . 11 10 . . Record 16 | . . . 1 . . . . . . 1 11 . . . . . . . . . . . . . . . . . 3 . . . . . Part Schematic 15 | . . . . . . . . . . . 10 . . . . . . . . . . 3 . . . . . 1 . . 1 . . . Robot Schematic 4 | . . . . . . . . . . . 4 . . . . . . . . . . . . . . . . . . . . . . . Robot Analysis 2 | . 1 . 1 . . . . . . . . . . . . . . . . . . . . . . . . . . . . . . . Prototype ID Bank 8 | . . . . . . . . . . . 3 . . . . . . . . . . . . . . 5 . . . . . . . . Open Door 8 | . . . . 1 1 . 1 . . . . . . . . . . . . . . . . . . . . 1 . . 1 3 . . Branch Access Points 4 | . . . 1 . . . . 1 . . . . . . . . . . . . . . 1 . . . . 1 . . . . . . Emergency Access Points 2 | . . . . . 1 . 1 . . . . . . . . . . . . . . . . . . . . . . . . . . . Terminal Index 4 | . . . . 1 . . . . . . . . . . . . . . . . . 1 . . . . . . 1 . 1 . . . Repair Station Index 1 | . 1 . . . . . . . . . . . . . . . . . . . . . . . . . . . . . . . . . Scanalyzer Index 1 | . . . . . . . . . . . . . . . . . . . . . . . . . . . . . . . . 1 . . Garrison Index 1 | . . . . . . 1 . . . . . . . . . . . . . . . . . . . . . . . . . . . . Alert Level 11 | . . . . . . 3 . . . . . . . . . . . . . . . 1 . . . . . . 2 . 2 3 . . Unreport Threat 14 | . . . 1 1 . 3 . . . . . . . . . . . . . . . 2 . . . . . . 1 . 3 3 . . Recall Investigation 2 | . . . . . . . . . . . . . . . . . . . . . . . 1 . . . . 1 . . . . . . Hauler Manifests 6 | . 1 . 2 . . 1 . . . . . . . . . . . . . . . . . . . . . 1 . . 1 . . . Zone Layout 19 | . 2 . 2 3 . 2 . . . . . . . . . . . . 1 . . 3 1 . . . . 2 1 . 2 . . . Patrol Navigation 1 | . . . . . . . 1 . . . . . . . . . . . . . . . . . . . . . . . . . . . Security Stations 1 | . . . . . 1 . . . . . . . . . . . . . . . . . . . . . . . . . . . . . Fabricator Hacks 14 | . . . . . . . . . . . . . 2 . . . . 2 . . . . 7 . . . . 2 . . 1 . . . Network Status 2 | . . . . . . . . . . . . . . . . . . . . . . . 1 . . . . . . . 1 . . . Load Schematic 7 | . . . . . . . . . . . . . 1 . . . . 1 . . . . 3 . . . . 2 . . . . . . Build 5 | . . . . . . . . . . . . . 1 . . . . 1 . . . . 3 . . . . . . . . . . . Repair Station Hacks 28 | . 4 . . . . 10 . . . . . . 2 . . . . 1 . . . . 5 . . . . 2 . . 4 . . . Scan Component 15 | . 2 . . . . 5 . . . . . . 1 . . . . 1 . . . . 3 . . . . 1 . . 2 . . . Repair 13 | . 2 . . . . 5 . . . . . . 1 . . . . . . . . . 2 . . . . 1 . . 2 . . . Recycling Unit Hacks . | . . . . . . . . . . . . . . . . . . . . . . . . . . . . . . . . . . . Scanalyzer 11 | . . . . . . 5 . . . . . . . . . . . . . . . . . . . . . . 2 . . 4 . . Insert Component 8 | . . . . . . 2 . . . . . . . . . . . . . . . . . . . . . . 2 . . 4 . . Analyze 3 | . . . . . . 3 . . . . . . . . . . . . . . . . . . . . . . . . . . . . Garrison Access Hacks 7 | . . . . 1 . 1 . . . . . . 1 . . . . 2 . . . . 1 . . . . . 1 . . . . . Unlock Access 2 | . . . . 1 . 1 . . . . . . . . . . . . . . . . . . . . . . . . . . . . Seal Access 5 | . . . . . . . . . . . . . 1 . . . . 2 . . . . 1 . . . . . 1 . . . . . Unauthorized Hacks 53 | . 8 . 5 3 . 5 . 2 . . . . 3 . . . . . . . . 2 6 . . . . 5 4 . 6 3 1 . Terminals 47 | . 7 . 5 3 . 5 . 2 . . . . 3 . . . . . . . . 2 2 . . . . 4 4 . 6 3 1 . Track 1 | . . . . . . . . . . . . . . . . . . . . . . . . . . . . 1 . . . . . . Assimilate 1 | . . . . . . . . 1 . . . . . . . . . . . . . . . . . . . . . . . . . . Botnet 44 | . 7 . 5 3 . 5 . 1 . . . . 3 . . . . . . . . 2 2 . . . . 2 4 . 6 3 1 . Operators 1 | . . . . . . . . . . . . . . . . . . . . . . . . . . . . 1 . . . . . . Fabricators 5 | . . . . . . . . . . . . . . . . . . . . . . . 4 . . . . 1 . . . . . . Prioritize 4 | . . . . . . . . . . . . . . . . . . . . . . . 3 . . . . 1 . . . . . . Haulers 1 | . . . . . . . . . . . . . . . . . . . . . . . 1 . . . . . . . . . . . Repair Stations . | . . . . . . . . . . . . . . . . . . . . . . . . . . . . . . . . . . . Recycling Units 1 | . 1 . . . . . . . . . . . . . . . . . . . . . . . . . . . . . . . . . Tunnel 1 | . 1 . . . . . . . . . . . . . . . . . . . . . . . . . . . . . . . . . Scanalyzers . | . . . . . . . . . . . . . . . . . . . . . . . . . . . . . . . . . . . Garrison Access . | . . . . . . . . . . . . . . . . . . . . . . . . . . . . . . . . . . . Data Cores Recovered 2 | . . . 1 . . . . . . . . . . . . . . 1 . . . . . . . . . . . . . . . . Used . | . . . . . . . . . . . . . . . . . . . . . . . . . . . . . . . . . . . Hacking Detections 86 | . 5 . 4 4 2 12 2 3 . . . . 5 . . . . 6 2 . . 6 7 . . . . 5 6 . 7 6 4 . Full Trace Events 25 | . 1 . 1 2 . 3 1 . . . . . 2 . . . . 3 1 . . 1 4 . . . . 2 1 . . 2 1 . Feedback Events 1 | . . . . . . . . . . . . . . . . . . . . . . . . . . . . 1 . . . . . . Hackware Fried 1 | . . . . . . . . . . . . . . . . . . . . . . . . . . . . 1 . . . . . . Feedback Blocked . | . . . . . . . . . . . . . . . . . . . . . . . . . . . . . . . . . . . Robot Schematics Acquired 8 | . . . . . . . . . . . 4 . . . . 3 . . . . . . . . . . . . . . . 1 . . Robots Built . | . . . . . . . . . . . . . . . . . . . . . . . . . . . . . . . . . . . Authchips . | . . . . . . . . . . . . . . . . . . . . . . . . . . . . . . . . . . . Time . | . . . . . . . . . . . . . . . . . . . . . . . . . . . . . . . . . . . Total Robot Build Rating . | . . . . . . . . . . . . . . . . . . . . . . . . . . . . . . . . . . . Part Schematics Acquired 35 | . . . . . . 2 . . . . 10 . . . . 14 . . . . . 3 . . . . . 1 . . 5 . . . Parts Built 8 | . . . . . . . . . . . . . 2 . . . . 2 . . . . 4 . . . . . . . . . . . Authchips . | . . . . . . . . . . . . . . . . . . . . . . . . . . . . . . . . . . . Time 330 | . . . . . . . . . . . . . 58 . . . . 117 . . . . 155 . . . . . . . . . . . Total Part Build Rating 55 | . . . . . . . . . . . . . 14 . . . . 14 . . . . 27 . . . . . . . . . . . Parts Repaired 13 | . 2 . . . . 5 . . . . . . 1 . . . . . . . . . 2 . . . . 1 . . 2 . . . Time 608 | . 58 . . . . 286 . . . . . . 31 . . . . . . . . . 61 . . . . 36 . . 136 . . . Parts Recycled . | . . . . . . . . . . . . . . . . . . . . . . . . . . . . . . . . . . . Recycled Matter . | . . . . . . . . . . . . . . . . . . . . . . . . . . . . . . . . . . . Retrieved Matter . | . . . . . . . . . . . . . . . . . . . . . . . . . . . . . . . . . . . Retrieved Components . | . . . . . . . . . . . . . . . . . . . . . . . . . . . . . . . . . . . Parts Scanalyzed 2 | . . . . . . 2 . . . . . . . . . . . . . . . . . . . . . . . . . . . . Part Schematics Acquired 2 | . . . . . . 2 . . . . . . . . . . . . . . . . . . . . . . . . . . . . Parts Damaged . | . . . . . . . . . . . . . . . . . . . . . . . . . . . . . . . . . . . Bothacking | -11 -10 -10 -9 -9 -9 -8 -8 -7 -7 -7 -7 -6 -6 -6 -6 -6 -5 -5 -5 -5 -5 -5 -4 -4 -4 -4 -3 -3 -3 -2 -2 -2 -1 -1 ------------ Run | Scr Mat Min Mat Sto Gar Mat Gar Fac Low Low Dat Pro Fac Low Low Zio Pro Fac Ext Cet Arc Hub Fac Upp Upp War Pro Res Qua Res Tes Sec Acc Com Used RIF Installer . | . . . . . . . . . . . . . . . . . . . . . . . . . . . . . . . . . . . Robots Hacked . | . . . . . . . . . . . . . . . . . . . . . . . . . . . . . . . . . . . Non-combat . | . . . . . . . . . . . . . . . . . . . . . . . . . . . . . . . . . . . Combat . | . . . . . . . . . . . . . . . . . . . . . . . . . . . . . . . . . . . Robot Hacks Applied . | . . . . . . . . . . . . . . . . . . . . . . . . . . . . . . . . . . . Relay Couplers Released 25 | . . . . . 9 . 3 4 . . . . . . . . . 3 . . . . . . . . . . . 5 . . 1 . Machine Destruction 15 | . . . . . 9 . . . . . . . . . . . . 3 . . . . . . . . . . . 2 . . 1 . Programmers 10 | . . . . . . . 3 4 . . . . . . . . . . . . . . . . . . . . . 3 . . . . Fabnet Peak Effective % . | . . . . . . . . . . . . . . . . . . . . . . . . . . . . . . . . . . . Robots Rewired 24 | . . . . . 4 . . . 3 . . . . . . . . . 17 . . . . . . . . . . . . . . . Allies Hacked . | . . . . . . . . . . . . . . . . . . . . . . . . . . . . . . . . . . . Hacks Repelled . | . . . . . . . . . . . . . . . . . . . . . . . . . . . . . . . . . . . Allies | -11 -10 -10 -9 -9 -9 -8 -8 -7 -7 -7 -7 -6 -6 -6 -6 -6 -5 -5 -5 -5 -5 -5 -4 -4 -4 -4 -3 -3 -3 -2 -2 -2 -1 -1 -------- Run | Scr Mat Min Mat Sto Gar Mat Gar Fac Low Low Dat Pro Fac Low Low Zio Pro Fac Ext Cet Arc Hub Fac Upp Upp War Pro Res Qua Res Tes Sec Acc Com Total Allies 53 | . . . . 11 4 . 2 1 3 . . 1 . . . 9 . . 22 . . . . . . . . . . . . . . . Largest Group 10 | . . . . 10 4 . 2 1 3 2 1 1 . . . 9 9 3 7 5 . . . . . . . . . . . . . . Highest-Rated Group 336 | . . . . 100 113 . 51 26 60 40 20 96 . . . 255 255 84 336 145 . . . . . . . . . . . . . . Highest-Rated Ally 159 | . . . . 100 100 . 31 26 20 20 20 96 . . . 39 39 39 159 39 . . . . . . . . . . . . . . Warlord Squad Rendezvous 1 | . . . . . . . . . . . . . . . . . . 1 . . . . . . . . . . . . . . . . Ghost 1 | . . . . . . . . . . . . . . . . . . 1 . . . . . . . . . . . . . . . . Total Orders 1 | . . . . . 1 . . . . . . . . . . . . . . . . . . . . . . . . . . . . . STAY 1 | . . . . . 1 . . . . . . . . . . . . . . . . . . . . . . . . . . . . . Ally Attacks 343 | . . . . 73 14 . 8 . 7 1 . 12 . . . . 35 27 154 12 . . . . . . . . . . . . . . Total Damage 7279 | . . . . 704 256 . 164 . 269 54 . 470 . . . . 762 323 4006 271 . . . . . . . . . . . . . . Kills 72 | . . . . 14 4 . 2 . 3 1 . 4 . . . . 4 4 36 . . . . . . . . . . . . . . . Allies Corrupted . | . . . . . . . . . . . . . . . . . . . . . . . . . . . . . . . . . . . Allies Melted 2 | . . . . . . . . . . . . . . . . . 2 . . . . . . . . . . . . . . . . . Intel | -11 -10 -10 -9 -9 -9 -8 -8 -7 -7 -7 -7 -6 -6 -6 -6 -6 -5 -5 -5 -5 -5 -5 -4 -4 -4 -4 -3 -3 -3 -2 -2 -2 -1 -1 ------- Run | Scr Mat Min Mat Sto Gar Mat Gar Fac Low Low Dat Pro Fac Low Low Zio Pro Fac Ext Cet Arc Hub Fac Upp Upp War Pro Res Qua Res Tes Sec Acc Com Robot Analysis Total 2 | . 1 . 1 . . . . . . . . . . . . . . . . . . . . . . . . . . . . . . . Derelict Logs Recovered 10 | . . 1 . . . . . . . 2 . . . 1 . 1 2 . . . . . . 2 1 . . . . . . . . . Drone Launches . | . . . . . . . . . . . . . . . . . . . . . . . . . . . . . . . . . . . Drone Recoveries . | . . . . . . . . . . . . . . . . . . . . . . . . . . . . . . . . . . . Exploration | -11 -10 -10 -9 -9 -9 -8 -8 -7 -7 -7 -7 -6 -6 -6 -6 -6 -5 -5 -5 -5 -5 -5 -4 -4 -4 -4 -3 -3 -3 -2 -2 -2 -1 -1 ------------- Run | Scr Mat Min Mat Sto Gar Mat Gar Fac Low Low Dat Pro Fac Low Low Zio Pro Fac Ext Cet Arc Hub Fac Upp Upp War Pro Res Qua Res Tes Sec Acc Com Turns Passed 40054 | 66 1483 902 689 958 1618 2139 1807 513 646 584 135 516 970 600 745 1465 650 1652 1682 285 480 960 1891 546 370 1632 892 913 1694 1275 1875 2195 3147 2079 Spaces Moved 19357 | 45 757 551 330 447 676 869 870 223 362 345 83 260 479 317 401 913 377 663 665 96 134 342 697 256 222 775 387 474 906 673 940 1279 1886 657 Core 17 | 17 . . . . . . . . . . . . . . . . . . . . . . . . . . . . . . . . . . Treads 17389 | 28 757 551 330 447 676 869 870 223 362 345 83 260 479 317 401 913 377 663 665 96 134 342 697 256 222 775 387 474 906 673 940 1012 782 77 Legs 951 | . . . . . . . . . . . . . . . . . . . . . . . . . . . . . . . . . 371 580 Wheels . | . . . . . . . . . . . . . . . . . . . . . . . . . . . . . . . . . . . Hover . | . . . . . . . . . . . . . . . . . . . . . . . . . . . . . . . . . . . Flight . | . . . . . . . . . . . . . . . . . . . . . . . . . . . . . . . . . . . Fastest Speed 50 | 50 160 160 160 160 160 160 160 160 160 160 160 160 160 160 160 160 160 160 160 160 160 160 155 155 155 155 152 145 145 153 150 155 155 116 Average Speed 158 | 125 160 160 160 160 160 160 160 160 160 160 160 160 160 160 160 160 160 160 160 160 160 160 158 155 155 155 155 149 150 153 152 155 171 153 Slowest Speed 305 | 160 160 160 160 240 160 160 160 160 160 160 160 160 240 160 160 160 160 160 160 160 160 160 160 155 155 155 160 158 153 153 232 155 305 240 Overloaded Moves . | . . . . . . . . . . . . . . . . . . . . . . . . . . . . . . . . . . . Propulsion Burnouts . | . . . . . . . . . . . . . . . . . . . . . . . . . . . . . . . . . . . Robots Hopped . | . . . . . . . . . . . . . . . . . . . . . . . . . . . . . . . . . . . Cave-ins Triggered . | . . . . . . . . . . . . . . . . . . . . . . . . . . . . . . . . . . . Teleports 6 | . . . . . . . . . . . . . . . . . . . . . . . . . . . . . 3 . . 1 2 . Microwarps 75 | . . . . . . . . . . . . . . . . . . . . . . . . . . . . . . . . 18 57 . Exploration Rate (%) 55 | 3 96 94 36 80 55 76 86 8 61 56 70 43 17 63 60 85 56 28 86 54 77 46 22 49 38 80 59 18 89 28 92 72 46 27 Regions Visited 34 Branch Regions 22 Pre-discovered Areas 9 | . 1 1 . . . . . . 1 . 1 . . . . 3 1 . . . . . . . 1 . . . . . . . . . Known Exits Taken 17 | . . . 1 1 . 1 . 1 1 1 1 1 1 1 1 1 1 1 . . . 1 1 . . . . 1 . . . . . . Unknown Exits Taken 15 | 1 1 1 . . . . . . . . . . . . . . . . 1 1 1 . . 1 1 1 1 . 1 1 1 1 1 . Scrap Searched 20 | . . 1 . . . . . . 1 3 . 1 . 1 1 3 2 . . . . . . 2 2 . 3 . . . . . . . Spaces Dug 168 | . 4 . . . . . 2 3 5 . . . 3 4 4 . 1 10 6 . . . 4 6 . 1 7 9 8 10 14 20 23 24 Terrain Destroyed 1117 | . 6 . 5 6 93 32 20 19 8 1 . 12 60 28 17 . 2 38 48 7 8 198 69 10 . 6 20 25 27 26 27 55 99 145 Melee . | . . . . . . . . . . . . . . . . . . . . . . . . . . . . . . . . . . . Projectile 565 | . 6 . 5 6 . 32 20 19 8 1 . 12 11 9 17 . 2 28 26 7 8 23 30 10 . 6 20 25 27 26 27 55 60 39 AOE 476 | . . . . . 93 . . . . . . . 49 19 . . . 10 22 . . 175 39 . . . . . . . . . 3 66 Terrain Rammed . | . . . . . . . . . . . . . . . . . . . . . . . . . . . . . . . . . . . Walls Destroyed . | . . . . . . . . . . . . . . . . . . . . . . . . . . . . . . . . . . . Machines Disabled . | . . . . . . . . . . . . . . . . . . . . . . . . . . . . . . . . . . . Actions | -11 -10 -10 -9 -9 -9 -8 -8 -7 -7 -7 -7 -6 -6 -6 -6 -6 -5 -5 -5 -5 -5 -5 -4 -4 -4 -4 -3 -3 -3 -2 -2 -2 -1 -1 --------- Run | Scr Mat Min Mat Sto Gar Mat Gar Fac Low Low Dat Pro Fac Low Low Zio Pro Fac Ext Cet Arc Hub Fac Upp Upp War Pro Res Qua Res Tes Sec Acc Com Total 27518 | 52 942 560 423 594 995 1433 1148 334 419 370 85 326 641 381 469 918 420 1156 1204 196 302 678 1331 383 246 1147 617 673 1238 918 1384 1628 2286 1621 Wait 5053 | . 98 2 40 72 46 417 165 74 36 21 1 29 96 38 44 1 31 364 314 47 83 245 457 110 22 258 130 56 168 78 256 279 407 568 Move 18396 | 44 756 550 329 446 675 869 867 222 361 344 82 259 478 316 400 912 376 662 664 95 133 341 696 255 221 774 386 473 905 671 939 1029 1209 657 Hop . | . . . . . . . . . . . . . . . . . . . . . . . . . . . . . . . . . . . Pick Up 217 | 2 15 . 6 3 28 5 1 2 4 . . 5 5 . . 1 2 8 3 5 3 4 9 1 . 8 8 19 8 8 11 21 11 11 Fast Attach 155 | 6 4 . 3 1 3 7 4 . 1 . 1 2 9 1 . 1 1 7 1 1 . 1 8 . . 12 2 3 5 7 24 6 11 23 Attach 147 | . 2 . 1 1 6 3 3 2 1 . . 4 4 1 . 1 1 6 2 4 4 4 5 . . 2 8 8 4 5 8 21 29 7 Detach 53 | . 1 . . . . . 2 . . . . 1 2 1 . . 1 3 . 1 . . 2 . . 3 3 . . 1 6 8 16 2 Swap 151 | . 4 . 4 8 3 3 . 2 . . . 1 4 . . . 1 8 8 . 4 3 22 1 2 11 2 10 5 10 2 9 11 13 Drop 269 | . 11 . 5 11 28 5 4 2 5 . 1 2 14 1 . 2 3 12 4 3 3 3 7 1 . 20 6 12 14 12 33 17 8 20 Fire 2844 | . 45 5 34 49 176 120 102 30 11 5 . 23 27 18 23 . 2 83 75 40 68 71 122 15 1 59 72 90 129 125 100 237 573 314 Melee 7 | . . . . . . . . . . . . . . . . . 2 . . . . . . . . . . . . . 4 1 . . Ram . | . . . . . . . . . . . . . . . . . . . . . . . . . . . . . . . . . . . Kick . | . . . . . . . . . . . . . . . . . . . . . . . . . . . . . . . . . . . Crush 52 | . 6 3 1 3 . 4 . . . . . . 2 5 2 . . 3 1 . 4 6 3 . . . . 2 . 1 1 . 5 . Escape Stasis 12 | . . . . . . . . . . . . . . . . . . . . . . . . . . . . . . . . . 6 6 Rewire 162 | . . . . . 30 . . . . . . . . . . . . . 132 . . . . . . . . . . . . . . . Trap . | . . . . . . . . . . . . . . . . . . . . . . . . . . . . . . . . . . . Miscellaneous . | . . . . . . . . . . . . . . . . . . . . . . . . . . . . . . . . . . . Route ------- -11/Scrapyard -10/Materials (discovered 4 exits: *Mat x3 / [*Min]) -10/Mines (discovered 2 exits: *Mat x2) -9/Materials (discovered 4 exits: *Mat / *Min x2 / *Sto) -9/Storage -9/Garrison -8/Materials (discovered 4 exits: *Fac x3 / Gar) -8/Garrison (discovered 3 exits: *Fac x3) -7/Factory (discovered 2 exits: *Low x2) -7/Lower Caves -7/Lower Caves (discovered 2 exits: *Fac / *Dat) -7/Data Miner -6/Proximity Caves -6/Factory -6/Lower Caves -6/Lower Caves (discovered 2 exits: *Fac / *Zio) -6/Zion -5/Proximity Caves -5/Factory (discovered 2 exits: *Fac / *Ext) -5/Extension (discovered 3 exits: *Fac x2 / *Cet) -5/Cetus -5/Archives (discovered 2 exits: *Fac / *Hub) -5/Hub_04(d) (discovered 3 exits: *Fac x3) -4/Factory (discovered 2 exits: *Upp x2) -4/Upper Caves -4/Upper Caves -4/Warlord -3/Proximity Caves -3/Research (discovered 4 exits: [*Res] / Arm / *Qua x2) -3/Quarantine -2/Research (discovered 3 exits: *Acc x2 / *Tes) -2/Testing (discovered 2 exits: *Acc / *Sec) -2/Section 7 -1/Access -1/Command History --------- Turn | Location | Event 37 | -11/Scrapyard | Discovered new exit (range 16) 67 | -11/Scrapyard | Entered Materials 315 | -10/Materials | Build established: Mutant 367 | -10/Materials | Discovered new exit (range 13) 818 | -10/Materials | Discovered new exit (range 14) 842 | -10/Materials | Central database locked down 1060 | -10/Materials | Discovered new exit (range 15) 1261 | -10/Materials | Repaired Lgt. Treads 1295 | -10/Materials | Repaired Imp. Light Cannon 1400 | -10/Materials | Discovered new exit (range 15) 1550 | -10/Materials | Entered Mines 1740 | -10/Mines | Discovered new exit (range 15) 1865 | -10/Mines | Learned location of Mines (-9) 1886 | -10/Mines | Discovered new exit (range 8) 2452 | -10/Mines | Entered Materials 2452 | -9/Materials | Evolved 2 slots: Propulsion x1, Utility x1 2541 | -9/Materials | Identified exit to Mines 2541 | -9/Materials | Identified exit to Storage 3124 | -9/Materials | Discovered new exit (range 13) 3141 | -9/Materials | Entered Storage 3171 | -9/Storage | Assisted by bots powering up and referring to "LRC-V3" 3876 | -9/Storage | Met 01-MTF 4098 | -9/Storage | Identified exit to Garrison 4099 | -9/Storage | Entered Garrison 4099 | -9/Garrison | Accompanied by 1 ally (01-MTF) 4104 | -9/Garrison | 01-MTF left 4198 | -9/Garrison | Triggered checkpoint 4286 | -9/Garrison | Garrison Relay disabled 5190 | -9/Garrison | Phase Generator disabled 5311 | -9/Garrison | Spotted B-75 Beast 5373 | -9/Garrison | Destroyed B-75 Beast 5396 | -9/Garrison | Lost 5 parts (1p2u2w) 5400 | -9/Garrison | Garrison Relay disabled 5510 | -9/Garrison | Triggered checkpoint 5689 | -9/Garrison | Discovered new exit (range 10) 5709 | -9/Garrison | Learned Materials security intel 5717 | -9/Garrison | Entered Materials 5717 | -8/Materials | Evolved 2 slots: Propulsion x1, Utility x1 6452 | -8/Materials | Repaired Imp. Heavy Treads 6515 | -8/Materials | Repaired Imp. Heavy Treads 6590 | -8/Materials | Discovered new exit (range 14) 6781 | -8/Materials | Discovered new exit (range 13) 7221 | -8/Materials | Discovered new exit (range 8) 7333 | -8/Materials | Repaired Hvy. Assault Cannon 7396 | -8/Materials | Repaired Imp. Heavy Treads 7460 | -8/Materials | Repaired Imp. Heavy Treads 7748 | -8/Materials | Garrison activated, responded to threat 7853 | -8/Materials | Identified exit to Garrison 7856 | -8/Materials | Entered Garrison 7890 | -8/Garrison | Triggered checkpoint 7946 | -8/Garrison | Rescued a captive Derelict 7948 | -8/Garrison | Rescued a captive Derelict 8052 | -8/Garrison | Triggered checkpoint 8152 | -8/Garrison | Triggered checkpoint 8262 | -8/Garrison | Discovered new exit (range 10) 8323 | -8/Garrison | P-60 Hacker assimilated allied KL-DUC(b) 8396 | -8/Garrison | Triggered checkpoint 8494 | -8/Garrison | Discovered new exit (range 12) 8680 | -8/Garrison | Triggered checkpoint 9157 | -8/Garrison | Discovered new exit (range 8) 9168 | -8/Garrison | Attempted to access garrison exit controls, blocked by remote lockdown 9290 | -8/Garrison | Attempted to access garrison exit controls, blocked by remote lockdown 9663 | -8/Garrison | Entered Factory 9663 | -7/Factory | Evolved 2 slots: Utility x2 9835 | -7/Factory | Identified exit to Lower Caves 9951 | -7/Factory | Build established: Scavenger-Mutant 10063 | -7/Factory | First assault squad dispatched 10176 | -7/Factory | Entered Lower Caves 10217 | -7/Lower Caves | Met a Warlord Commander 10218 | -7/Lower Caves | Learned location of Warlord (-4) 10220 | -7/Lower Caves | Found Encrypted Comm Array 10750 | -7/Lower Caves | Discovered new exit (range 9) 10775 | -7/Lower Caves | Identified exit to Lower Caves 10822 | -7/Lower Caves | Entered another Lower Caves area 10822 | -7/Lower Caves | Accompanied by 2 allies 10844 | -7/Lower Caves | Encountered a Warlord checkpoint 10863 | -7/Lower Caves | Learned 4 Factory zone layouts 10886 | -7/Lower Caves | Discovered new exit (range 5) 10892 | -7/Lower Caves | Identified exit to Factory 11067 | -7/Lower Caves | Learned Factory terminal intel 11381 | -7/Lower Caves | Discovered new exit (range 6) 11387 | -7/Lower Caves | Identified exit to Data Miner 11406 | -7/Lower Caves | Entered Data Miner 11406 | -7/Data Miner | Accompanied by 1 ally 11406 | -7/Data Miner | Discovered new exit (range 6) 11437 | -7/Data Miner | Met Data Miner 11469 | -7/Data Miner | Learned location of Section 7 (-2) 11469 | -7/Data Miner | Acquired the access code to Warlord's prototype stash 11490 | -7/Data Miner | Received God Mode back door access code from Data Miner 11538 | -7/Data Miner | Identified exit to Proximity Caves 11541 | -7/Data Miner | Entered Proximity Caves 11541 | -6/Proximity Caves | Accompanied by 1 ally 11541 | -6/Proximity Caves | Spotted B-75 Beast 11567 | -6/Proximity Caves | Destroyed B-75 Beast 11594 | -6/Proximity Caves | Lost 3 parts (1n1u1w) 11772 | -6/Proximity Caves | Escorted by Enhanced Grunt 12016 | -6/Proximity Caves | Discovered exit to Factory (range 14) 12057 | -6/Proximity Caves | Entered Factory 12057 | -6/Factory | Evolved 2 slots: Utility x2 12059 | -6/Factory | Loaded intel: 26 terminal locations 12356 | -6/Factory | Build established: Scavenger-Skirmisher 12393 | -6/Factory | Incoming investigation squad redirected 12396 | -6/Factory | Repaired Imp. Heavy Treads 12819 | -6/Factory | Discovered new exit (range 11) 12861 | -6/Factory | Incoming investigation squad redirected 12891 | -6/Factory | Fabricated Imp. Heavy Treads? 13001 | -6/Factory | Identified exit to Lower Caves 13027 | -6/Factory | Entered Lower Caves 13057 | -6/Lower Caves | Build established: Skirmisher 13202 | -6/Lower Caves | Learned Factory security intel 13344 | -6/Lower Caves | Attracted the attention of an 0b10 checkpoint 13612 | -6/Lower Caves | Discovered new exit (range 9) 13625 | -6/Lower Caves | Identified exit to Lower Caves 13627 | -6/Lower Caves | Entered another Lower Caves area 13688 | -6/Lower Caves | Discovered new exit (range 8) 13698 | -6/Lower Caves | Identified exit to Factory 14137 | -6/Lower Caves | Discovered new exit (range 13) 14371 | -6/Lower Caves | Identified exit to Zion 14372 | -6/Lower Caves | Entered Zion 14435 | -6/Zion | System corruption cleaned by Quarantine Array 14515 | -6/Zion | Discovered new exit (range 15) 14538 | -6/Zion | Identified exit to Proximity Caves 14829 | -6/Zion | Gained Derelict followers 14862 | -6/Zion | Given the Hacking Drone Bay 14893 | -6/Zion | Learned location of Quarantine (-3) 15181 | -6/Zion | Learned Factory repair station intel 15189 | -6/Zion | Gained Derelict followers 15286 | -6/Zion | Found CR-A16's Pointy Stick 15837 | -6/Zion | Entered Proximity Caves 15837 | -5/Proximity Caves | Accompanied by 9 allies 16267 | -5/Proximity Caves | Spotted B-75 Beast 16298 | -5/Proximity Caves | Allies destroyed B-75 Beast 16487 | -5/Proximity Caves | Entered Factory 16487 | -5/Factory | Accompanied by 3 allies 16487 | -5/Factory | Evolved 2 slots: Propulsion x2 16489 | -5/Factory | Loaded intel: 5 repair station locations 16581 | -5/Factory | Garrison activated, responded to threat 16584 | -5/Factory | Build established: Scavenger-Skirmisher 16981 | -5/Factory | Destroyed 10 combat bots 17053 | -5/Factory | Joined by Warlord Ghost squad 17246 | -5/Factory | Build established: Skirmisher 17320 | -5/Factory | Discovered new exit (range 18) 17350 | -5/Factory | Identified exit to Factory 17565 | -5/Factory | Fabricated Imp. Heavy Treads (x2) 18125 | -5/Factory | Discovered new exit (range 10) 18138 | -5/Factory | Identified exit to Extension 18139 | -5/Factory | Entered Extension 18231 | -5/Extension | Rescued a captive Derelict 18400 | -5/Extension | Rescued A7 18482 | -5/Extension | Rescued a captive Derelict 18525 | -5/Extension | Rescued a captive Derelict 18525 | -5/Extension | Rescued a captive Derelict 18614 | -5/Extension | Energy Cycler disabled 18614 | -5/Extension | Rescued a captive Derelict 18614 | -5/Extension | Rescued a captive Derelict 18618 | -5/Extension | Rescued a captive Derelict 18996 | -5/Extension | Build established: Mutant 19091 | -5/Extension | Spotted B-75 Beast 19099 | -5/Extension | Spotted B-75 Beast 19113 | -5/Extension | Destroyed B-75 Beast 19118 | -5/Extension | Allies destroyed B-75 Beast 19135 | -5/Extension | Discovered exit to Factory (range 15) 19201 | -5/Extension | Extracted ID and sensor layout for unrecognized location from A7's data core 19464 | -5/Extension | Build established: Scavenger-Mutant 19802 | -5/Extension | Discovered exit to Factory (range 10) 19803 | -5/Extension | Discovered new exit (range 6) 19821 | -5/Extension | Entered Cetus 19821 | -5/Cetus | Accompanied by 5 allies 19851 | -5/Cetus | Spotted Cetus Guard 19851 | -5/Cetus | Spotted Cetus Guard 19853 | -5/Cetus | Spotted Cetus Guard 19854 | -5/Cetus | Spotted Cetus Guard 19872 | -5/Cetus | Destroyed Cetus Guard 19887 | -5/Cetus | Destroyed Cetus Guard 19898 | -5/Cetus | Destroyed Cetus Guard 20028 | -5/Cetus | Discovered new exit (range 21) 20106 | -5/Cetus | Entered Archives 20254 | -5/Archives | Discovered new exit (range 21) 20269 | -5/Archives | Discovered exit to Factory (range 17) 20273 | -5/Archives | Build established: Hacker-Mutant 20586 | -5/Archives | Entered Hub_04(d) 20876 | -5/Hub_04(d) | Discovered exit to Factory (range 8) 21020 | -5/Hub_04(d) | Discovered exit to Factory (range 6) 21226 | -5/Hub_04(d) | Discovered exit to Factory (range 10) 21251 | -5/Hub_04(d) | Spotted B-75 Beast 21491 | -5/Hub_04(d) | Incoming investigation squad redirected 21516 | -5/Hub_04(d) | Network Hub disabled 21546 | -5/Hub_04(d) | Entered Factory 21546 | -4/Factory | Evolved 2 slots: Power x1, Utility x1 21717 | -4/Factory | Found Quantum Capacitor 21796 | -4/Factory | Build established: Scavenger-Mutant 21808 | -4/Factory | Identified exit to Upper Caves 21861 | -4/Factory | Fabricated Adv. Heavy Treads? 22415 | -4/Factory | Fabricated Hvy. Mass Driver (x1) 22644 | -4/Factory | Repaired Broken Imp. Heavy Treads 22796 | -4/Factory | First assault squad dispatched 22814 | -4/Factory | Incoming assault squad redirected 23187 | -4/Factory | Fabricated Exp. Targeting Computer? 23336 | -4/Factory | Repaired Hvy. Mass Driver 23437 | -4/Factory | Entered Upper Caves 23501 | -4/Upper Caves | Attracted the attention of an 0b10 checkpoint 23582 | -4/Upper Caves | Learned Research emergency access door positions 23895 | -4/Upper Caves | Learned Research interactive machine intel 23958 | -4/Upper Caves | Discovered new exit (range 6) 23983 | -4/Upper Caves | Entered another Upper Caves area 24226 | -4/Upper Caves | Discovered new exit (range 9) 24353 | -4/Upper Caves | Entered Warlord 24405 | -4/Warlord | System corruption cleaned by Quarantine Array 25129 | -4/Warlord | Warlord's base attacked by MAIN.C 25185 | -4/Warlord | Met Warlord 25199 | -4/Warlord | Opened Warlord's prototype stash 25207 | -4/Warlord | Found Prototype Reactor 25211 | -4/Warlord | Found Exp. Targeting Computer 25221 | -4/Warlord | Found Prototype Device 25221 | -4/Warlord | Identified Thermal Barrier 25391 | -4/Warlord | System corruption reached 10% 25447 | -4/Warlord | Found Corrupted Prototype Ballistic Cannon 25447 | -4/Warlord | Identified Hvy. Autocannon 25473 | -4/Warlord | Spotted Striker 25479 | -4/Warlord | Warlord forces counterattacked 25514 | -4/Warlord | Spotted Striker 25538 | -4/Warlord | Spotted Striker 25565 | -4/Warlord | Spotted Executioner 25579 | -4/Warlord | Spotted Executioner 25594 | -4/Warlord | Spotted Striker 25624 | -4/Warlord | Found Corrupted Prototype Processor 25732 | -4/Warlord | Spotted Executioner 25804 | -4/Warlord | Warlord base infiltrated, sounded retreat 25815 | -4/Warlord | Spotted Striker 25835 | -4/Warlord | Spotted Striker 25842 | -4/Warlord | Spotted Striker 25866 | -4/Warlord | Spotted Striker 25889 | -4/Warlord | Spotted Striker 25936 | -4/Warlord | Spotted Striker 25936 | -4/Warlord | Spotted B-90 Cyclops 25936 | -4/Warlord | Spotted Striker 25942 | -4/Warlord | Discovered new exit (range 20) 25985 | -4/Warlord | Entered Proximity Caves 26055 | -3/Proximity Caves | Spotted B-86 Titan 26350 | -3/Proximity Caves | Destroyed B-86 Titan 26652 | -3/Proximity Caves | Lost 4 parts (1p2n1u) 26672 | -3/Proximity Caves | Identified Vortex Chain Reactor 26855 | -3/Proximity Caves | Discovered new exit (range 14) 26875 | -3/Proximity Caves | Identified Exp. Core Analyzer 26877 | -3/Proximity Caves | Entered Research 26877 | -3/Research | Evolved 2 slots: Utility x2 26879 | -3/Research | Loaded intel: 45 interactive machine locations 26932 | -3/Research | Identified exit to Armory 26932 | -3/Research | Identified exit to Quarantine 26983 | -3/Research | Spotted B-86 Titan 27017 | -3/Research | Destroyed B-86 Titan 27029 | -3/Research | Found Quantum Capacitor 27365 | -3/Research | Imp. Hacking Suite fried by hacking feedback 27370 | -3/Research | Discovered new exit (range 12) 27670 | -3/Research | Found Imp. Powered Armor 27743 | -3/Research | Repaired Coolant Network 27790 | -3/Research | Entered Quarantine 28022 | -3/Quarantine | Cryocooling Duct disabled 28037 | -3/Quarantine | Ambient heat levels rising (+20) 28037 | -3/Quarantine | Non-combat units ordered to evacuate 28128 | -3/Quarantine | Found Alien Artifact 28209 | -3/Quarantine | Found Alien Artifact 28445 | -3/Quarantine | Discovered new exit (range 8) 28660 | -3/Quarantine | Identified Hpw. Transdimensional Reconstructor 28660 | -3/Quarantine | Identified Core Reset Matrix 28720 | -3/Quarantine | Warped through subspace 28741 | -3/Quarantine | Found Hpw. Transdimensional Reconstructor 28744 | -3/Quarantine | Found Hpw. Transdimensional Reconstructor 28984 | -3/Quarantine | Found Alien Artifact 29238 | -3/Quarantine | Found Alien Impact Weapon 29364 | -3/Quarantine | Spotted Alpha 7 29396 | -3/Quarantine | Warped through subspace 29409 | -3/Quarantine | Found Alien Artifact 29417 | -3/Quarantine | Identified Transdimensional Reconstructor 29417 | -3/Quarantine | Warped through subspace 29484 | -3/Quarantine | Entered Research 29484 | -2/Research | Warlord forces began assault on 0b10 29484 | -2/Research | Evolved 2 slots: Power x1, Utility x1 29509 | -2/Research | Distinguished unit "Lobotomizers" dispatched to help 29509 | -2/Research | Distinguished unit "Lobotomizers" dispatched to help 29594 | -2/Research | Research machine network offline 29608 | -2/Research | Met up with Warlord 29670 | -2/Research | Found Prototype Device 29672 | -2/Research | Found Prototype Device 29692 | -2/Research | Identified Exp. EM Disruption Field (x2) 29791 | -2/Research | Build established: Generator-Mutant 29895 | -2/Research | Spotted Executioner 29902 | -2/Research | Discovered new exit (range 14) 29914 | -2/Research | Borebot progress halted 29916 | -2/Research | Spotted Striker 29916 | -2/Research | Spotted Striker 29917 | -2/Research | Spotted Striker 29932 | -2/Research | Destroyed Striker 29946 | -2/Research | Spotted Executioner 29953 | -2/Research | Spotted Executioner 29955 | -2/Research | Destroyed Executioner 29963 | -2/Research | Destroyed Executioner 29975 | -2/Research | Spotted Striker 29994 | -2/Research | Destroyed Striker 30029 | -2/Research | Destroyed 18 combat bots 30032 | -2/Research | Lost 3 parts (1p2u) 30336 | -2/Research | Spotted Striker 30360 | -2/Research | Spotted Executioner 30422 | -2/Research | Discovered new exit (range 8) 30532 | -2/Research | Spotted Executioner 30539 | -2/Research | Spotted Executioner 30548 | -2/Research | Destroyed Executioner 30550 | -2/Research | Destroyed Executioner 30678 | -2/Research | Spotted Striker 30681 | -2/Research | Destroyed Striker 30755 | -2/Research | Discovered new exit (range 3) 30759 | -2/Research | Entered Testing 30796 | -2/Testing | Found Prototype Energy Cannon 30796 | -2/Testing | Identified Potential Cannon 30893 | -2/Testing | Garrison activated, responded to threat 31144 | -2/Testing | Identified Core Stripper 31161 | -2/Testing | Found Prototype Protection 31161 | -2/Testing | Identified SHELL Armor 31238 | -2/Testing | Found Prototype Ballistic Cannon 31238 | -2/Testing | Identified Omega Cannon 31770 | -2/Testing | Spotted Striker 31981 | -2/Testing | Repaired Enh. Nova Cannon 32046 | -2/Testing | Repaired Quantum Capacitor 32250 | -2/Testing | Discovered new exit (range 13) 32458 | -2/Testing | Spotted Fortress 32470 | -2/Testing | Destroyed Fortress 32484 | -2/Testing | Found Prototype Device 32484 | -2/Testing | Identified Exp. Force Field 32502 | -2/Testing | Found Vortex Chain Reactor 32506 | -2/Testing | Found Vortex Chain Reactor 32628 | -2/Testing | Discovered new exit (range 5) 32634 | -2/Testing | Entered Section 7 32641 | -2/Section 7 | Spotted S7 Guard 32667 | -2/Section 7 | Destroyed S7 Guard 32681 | -2/Section 7 | Found Alien Artifact 32709 | -2/Section 7 | Spotted S7 Guard 32730 | -2/Section 7 | Destroyed S7 Guard 32760 | -2/Section 7 | Found Alien Artifact 33034 | -2/Section 7 | Found Alien Artifact 33061 | -2/Section 7 | Spotted B-90 Cyclops 33062 | -2/Section 7 | Warped through subspace 33096 | -2/Section 7 | Found Alien Artifact 33173 | -2/Section 7 | Spotted S7 Guard 33179 | -2/Section 7 | Destroyed S7 Guard 33202 | -2/Section 7 | Spotted S7 Guard 33235 | -2/Section 7 | Found Alien Artifact 33288 | -2/Section 7 | Identified Integrated Dissipator 33288 | -2/Section 7 | Identified Integrated Mediator 33288 | -2/Section 7 | Identified Navigation Efficiency Matrix 33288 | -2/Section 7 | Identified Core Regenerator 33291 | -2/Section 7 | Installed Integrated Mediator, increased core attachment efficiency. 33293 | -2/Section 7 | Installed Integrated Dissipator, increased core heat dissipation (+20) 33384 | -2/Section 7 | Destroyed S7 Guard 33404 | -2/Section 7 | Found Alien Artifact 33419 | -2/Section 7 | Identified Core Membrane 33419 | -2/Section 7 | Installed Core Membrane, gained immunity to corruption 33420 | -2/Section 7 | Identified Integrated Thermoelectric Network 33420 | -2/Section 7 | Installed Integrated Thermoelectric Network, gained heat-energy exchange potential 33491 | -2/Section 7 | Found Alien Artifact 33669 | -2/Section 7 | First assault squad dispatched 33695 | -2/Section 7 | Incoming assault squad redirected 33741 | -2/Section 7 | Found Alien Artifact 33959 | -2/Section 7 | Destroyed 8 combat bots 33992 | -2/Section 7 | Identified Microwarp Drive 34020 | -2/Section 7 | Discovered new exit (range 8) 34114 | -2/Section 7 | Found Integrated Dissipator 34115 | -2/Section 7 | Installed Integrated Dissipator, increased core heat dissipation (+20) 34171 | -2/Section 7 | Spotted Executioner 34171 | -2/Section 7 | Spotted Executioner 34185 | -2/Section 7 | Found Transdimensional Reconstructor 34188 | -2/Section 7 | Found Transdimensional Reconstructor 34273 | -2/Section 7 | Found Alien Energy Gun 34288 | -2/Section 7 | Spotted Striker 34288 | -2/Section 7 | Spotted Striker 34295 | -2/Section 7 | Destroyed Striker 34298 | -2/Section 7 | Destroyed Striker 34304 | -2/Section 7 | Spotted Striker 34305 | -2/Section 7 | Spotted Striker 34315 | -2/Section 7 | Destroyed Striker 34320 | -2/Section 7 | Destroyed Striker 34339 | -2/Section 7 | Found Alien Energy Cannon 34521 | -2/Section 7 | Spotted B-99 Colossus 34594 | -2/Section 7 | Found Alien Artifact 34594 | -2/Section 7 | Identified LRC Armor 34594 | -2/Section 7 | Installed LRC Armor, increased core integrity (+250) 34605 | -2/Section 7 | Found Alien Artifact 34605 | -2/Section 7 | Identified LRC Matter Compressor 34605 | -2/Section 7 | Installed LRC Matter Compressor, increased matter storage capacity (+125) 34693 | -2/Section 7 | Incoming assault squad redirected 34788 | -2/Section 7 | Core integrity fell below 50% 34829 | -2/Section 7 | Entered Access 34829 | -1/Access | Evolved 2 slots: Power x1, Utility x1 35014 | -1/Access | Found Exp. Core Analyzer 35329 | -1/Access | First assault squad dispatched 35684 | -1/Access | Destroyed 8 combat bots 35696 | -1/Access | Garrison activated, responded to threat 35799 | -1/Access | Destroyed 9 combat bots 35859 | -1/Access | Incoming assault squad redirected 35890 | -1/Access | Incoming assault squad redirected 35920 | -1/Access | Warped through subspace 35938 | -1/Access | Incoming assault squad redirected 36017 | -1/Access | Incoming investigation squad redirected 36255 | -1/Access | High security lockdown imminent 36335 | -1/Access | High security lockdown engaged 36341 | -1/Access | Spotted B-99 Colossus 36346 | -1/Access | Core integrity fell below 50% 36414 | -1/Access | Warped through subspace 36422 | -1/Access | Spotted B-99 Colossus 36428 | -1/Access | Used Core Regenerator, restored core integrity (+462) 36476 | -1/Access | Spotted Executioner 36476 | -1/Access | Spotted Striker 36477 | -1/Access | Identified Sigix Sheargun 36485 | -1/Access | Destroyed Executioner 36494 | -1/Access | Garrison activated, responded to threat 36507 | -1/Access | Destroyed Striker 36540 | -1/Access | Spotted Striker 36540 | -1/Access | Spotted Striker 36543 | -1/Access | Spotted Investigator 36545 | -1/Access | Destroyed Striker 36546 | -1/Access | Scanned by Researcher 36579 | -1/Access | Destroyed 20 combat bots 36582 | -1/Access | Destroyed Striker 36623 | -1/Access | Garrison activated, responded to threat 36631 | -1/Access | Destroyed Investigator 36661 | -1/Access | Spotted Striker 36661 | -1/Access | Spotted Executioner 36662 | -1/Access | Spotted Executioner 36668 | -1/Access | Destroyed Executioner 36671 | -1/Access | Destroyed Striker 36673 | -1/Access | Destroyed Executioner 36675 | -1/Access | Identified Sigix Shearcannon 36697 | -1/Access | Spotted Striker 36697 | -1/Access | Spotted Striker 36697 | -1/Access | Spotted Striker 36702 | -1/Access | Destroyed Striker 36723 | -1/Access | Garrison activated, responded to threat 36725 | -1/Access | Destroyed Striker 36730 | -1/Access | Destroyed Striker 36780 | -1/Access | Found Exp. Core Analyzer 36803 | -1/Access | Destroyed 40 combat bots 36917 | -1/Access | Sterilization system engaged 36920 | -1/Access | Spotted Striker 36920 | -1/Access | Spotted Striker 36920 | -1/Access | Spotted Striker 36924 | -1/Access | Lost 3 parts (2p1n) 36929 | -1/Access | Destroyed Striker 36934 | -1/Access | Destroyed Striker 36951 | -1/Access | Destroyed Striker 36960 | -1/Access | Spotted Striker 36980 | -1/Access | Destroyed 22 combat bots 37030 | -1/Access | Destroyed Striker 37104 | -1/Access | Destroyed 14 combat bots 37165 | -1/Access | Destroyed 7 combat bots 37217 | -1/Access | Ambient heat levels rising (+10) 37367 | -1/Access | Ambient heat levels rising (+10) 37394 | -1/Access | Build established: Scavenger-Mutant 37517 | -1/Access | Ambient heat levels rising (+10) 37667 | -1/Access | Ambient heat levels rising (+10) 37761 | -1/Access | Core integrity fell below 20% 37817 | -1/Access | Ambient heat levels rising (+10) 37953 | -1/Access | Spotted B-99 Colossus 37953 | -1/Access | Spotted B-99 Colossus 37967 | -1/Access | Ambient heat levels rising (+10) 37972 | -1/Access | Discovered new exit (range 3) 37976 | -1/Access | Entered Command 38028 | -1/Command | Build established: Generator-Mutant 38251 | -1/Command | First assault squad dispatched 38275 | -1/Command | Incoming assault squad redirected 38295 | -1/Command | Identified Subatomic Replicator 38295 | -1/Command | Used Subatomic Replicator to replicate Sigix Shearcannon 38331 | -1/Command | High security lockdown imminent 38371 | -1/Command | Destroyed 15 combat bots 38411 | -1/Command | High security lockdown engaged 38563 | -1/Command | Destroyed 19 combat bots 38573 | -1/Command | Spotted Investigator 38577 | -1/Command | Destroyed Investigator 38592 | -1/Command | Spotted Striker 38593 | -1/Command | Spotted Striker 38593 | -1/Command | Spotted Striker 38597 | -1/Command | Destroyed Striker 38600 | -1/Command | Destroyed Striker 38603 | -1/Command | Destroyed Striker 38624 | -1/Command | Destroyed 17 combat bots 38757 | -1/Command | Spotted Executioner 38761 | -1/Command | Destroyed Executioner 38767 | -1/Command | Spotted Striker 38769 | -1/Command | Spotted Executioner 38769 | -1/Command | Spotted Striker 38773 | -1/Command | Destroyed Executioner 38774 | -1/Command | Spotted Executioner 38774 | -1/Command | Destroyed Striker 38780 | -1/Command | Destroyed Executioner 38781 | -1/Command | Destroyed Striker 38813 | -1/Command | Destroyed 25 combat bots 38992 | -1/Command | Phase Generator disabled 39045 | -1/Command | Spotted Striker 39047 | -1/Command | Destroyed Striker 39060 | -1/Command | Destroyed Executioner 39061 | -1/Command | Spotted Executioner 39061 | -1/Command | Destroyed Executioner 39066 | -1/Command | Spotted Executioner 39083 | -1/Command | Destroyed Executioner 39117 | -1/Command | Destroyed 31 combat bots 39252 | -1/Command | Spotted Striker 39252 | -1/Command | Spotted Striker 39255 | -1/Command | Spotted Executioner 39255 | -1/Command | Spotted Executioner 39255 | -1/Command | Destroyed Striker 39255 | -1/Command | Destroyed Executioner 39258 | -1/Command | Destroyed Striker 39259 | -1/Command | Destroyed Executioner 39266 | -1/Command | Destroyed Striker 39267 | -1/Command | Spotted Striker 39267 | -1/Command | Spotted Executioner 39269 | -1/Command | Destroyed Striker 39270 | -1/Command | Destroyed Executioner 39279 | -1/Command | Spotted Striker 39282 | -1/Command | Destroyed Striker 39284 | -1/Command | Destroyed Striker 39287 | -1/Command | Destroyed Striker 39304 | -1/Command | Destroyed Executioner 39306 | -1/Command | Spotted Executioner 39312 | -1/Command | Destroyed Executioner 39324 | -1/Command | Spotted Striker 39332 | -1/Command | Destroyed Striker 39370 | -1/Command | Destroyed 38 combat bots 39374 | -1/Command | Lost 9 parts (3p1n3u2w) 39647 | -1/Command | Build established: Scavenger-Mutant 39685 | -1/Command | Spotted B-99 Colossus 39931 | -1/Command | Spotted B-99 Colossus 40055 | -1/Command | Destroyed by S-43 Plague with Heavy Machine Gun Last Messages --------------- 39766_ R-10 Processor collects Myomer Leg. 39769_ R-10 Processor collects Phase Gun. 39772_ R-10 Processor collects Hvy. Laser. 39781_ ALERT: Heavy assault forces dispatched. 39785_ Slug penetrates Wall. 39789_ Slug penetrates Quantum Router. 39789_ Slug penetrates Wall. 39917_ Acquired Quantum Reactor. 39932_ Quantum Router disabled. 39932_ Slug penetrates Wall. 39932_ Penetrated by Slug. 39932_ Slug penetrates Wall. 39935_ Penetrated by Slug. 40031_ Destroyed Xenon Bombardment Thruster. 40037_ S-43 Plague destroyed. 40041_ Critical hit (Destroy). 40041_ Enh. Nova Cannon destroyed. 40043_ S-43 Plague destroyed. 40049_ Xenon Bombardment Thruster melted. 40049_ S-43 Plague destroyed. Map ----- +----------------------------------------------------+ | ???????????#"" #????????????????? | | ???????????#"" #????????????????? | | ????????????T "" #????????????????? | | ???????????#"" """" #????????????????? | | ???????????#"" " "" ###??????????????? | | ???????????#"" "" #??????????????? | | ???????????# #??????????????? | | ???????????# #??????????????? | | ???????????# #??????????????? | | ???????????# # "# #??????????????? | | ???????????# # "# ########+##???????????????? | | ???????????# ####" #?????????????????????????? | | ???????????# ???## #?????????????????????????? | | ???????????# ????# #?????????????????????????? | | ???????????# #####+####??????????????????????? | | ???????????# # #??????????????????????? | | ???????????# # #?????#####????????????? | | ???????????# # =#???? !?????????????? | | ???????????# # """" #??? ???????????????? | | ???????????# # """" #??? ????????????????? | | ???????????# # """" #?? ?????????????????? | | ???????????# + """" #? ??????????????????? | | ???????????# # #= ???????????????????? | | ???????????# # %#*######+#?????????????? | | ???????????# #####+##*%= ??????? | | ???????????# # =@# ??????? | | ???????????# # # ??????? | | ???????????# # # ???????? | | ???????????# # "" # ???????? | | ???????????# # """" # #########????????? | | ???????????# # """" # #????????????????? | | ???????????# R "" %# +????????????????? | | ???????????# # ! =*# #????????????????? | | ???????????# # =s# #????????????????? | | ???????????# # "" %=/ #????????????????? | | ???????????# # """" =# #????????????????? | | ???????????# # """" + #????????????????? | | ???????????# # "" # #??##??????? ????? | | ???????????" # # ###"###### ???? | | ?????????? # # # ??? | | #???????### # # ??? | | #?????????# # # ??? | | ######????# # # ??? | | # ??# ########## ??? | | ??? ##############???? | | ???? #????????????????? | | ?????? ####?????????????? | | ????? ## #?????????????? | | ? ??? "# ##????????????? | | ?? #####"#"########"""#????????????? | +----------------------------------------------------+ Best States ------------- Heat Dissipation 159 Energy Generation 105 Energy Capacity 1900 Matter Stores 425 Matter Capacity 500 Sight Range 22 Robot Scan Range 16 Terrain Scan Density 10 Jamming Range 16 Power Amplification 30 Armor Coverage 1800 Resistance: TH 15 Resistance: EM 75 Weapon Cycling 20 Melee Speed Boost 40 Phase Shifting 15 Evasion (%) 60 Targeting Accuracy 24 Core Analysis 12 Recoil Reduction 6 Particle Charging 25 Offensive Hacking 24 Item Schematics ----------------- Hvy. Assault Cannon | -8/Materials | Scanalyzed Imp. Heavy Treads | -8/Materials | Scanalyzed Combat Drone Bay | -7/Data Miner | Free Lgt. Regenerative Plating | -7/Data Miner | Free Cld. Aerolev Unit | -7/Data Miner | Free Gravity Neutralizer | -7/Data Miner | Free Imp. Heavy Machine Gun | -7/Data Miner | Free Antigrav System | -7/Data Miner | Free Recoil Nullifier | -7/Data Miner | Free Wave Gun | -7/Data Miner | Free Hvy. Disruptor Cannon | -7/Data Miner | Free Lrn. Proton Cannon | -7/Data Miner | Free Imp. Medium Treads | -6/Zion | Archive Imp. Focal Shield | -6/Zion | Archive Imp. Coolant Injector | -6/Zion | Archive Mak. Hover Unit | -6/Zion | Archive Adv. Thermal Shield | -6/Zion | Archive Hyp. Gauss Rifle | -6/Zion | Archive Hvy. Phase Cannon | -6/Zion | Archive Imp. Hardlight Generator | -6/Zion | Archive Lgt. Antimatter Reactor | -6/Zion | Archive Angular Momentum Engine | -6/Zion | Archive Hvy. Shock Bomb Launcher | -6/Zion | Archive Force Field | -6/Zion | Archive Hyp. Coil Gun | -6/Zion | Archive Imp. Hacking Suite | -6/Zion | Archive Adv. Heavy Treads | -5/Hub_04(d) | Hacked Exp. Targeting Computer | -5/Hub_04(d) | Hacked Hvy. Mass Driver | -5/Hub_04(d) | Hacked Adv. Heavy Siege Treads | -3/Research | Hacked Exp. Melee Analysis Suite | -2/Testing | Archive Hvy. Tesla Rifle | -2/Testing | Archive Adv. Matter Compressor | -2/Testing | Archive Prc. Energy Filter | -2/Testing | Archive Imp. Particle Accelerator | -2/Testing | Hacked Robot Schematics ------------------ G-50 Soldier | -7/Data Miner | Free R-10 Processor | -7/Data Miner | Free B-48 Gladiator | -7/Data Miner | Free M-28 Smith | -7/Data Miner | Free S-27 Virus | -6/Zion | Archive K-01 Serf | -6/Zion | Archive E-15 Imp | -6/Zion | Archive A-02 Transporter | -2/Section 7 | Archive Fabricated ------------ Imp. Heavy Treads | x2 | -6/Factory Imp. Heavy Treads | x2 | -5/Factory Adv. Heavy Treads | x2 | -4/Factory Hvy. Mass Driver | x1 | -4/Factory Exp. Targeting Computer | x1 | -4/Factory Alien Tech Used ----------------- High-powered Transdimensional Reconstructor Transdimensional Reconstructor Core Stripper Integrated Mediator Integrated Dissipator Core Membrane Integrated Thermoelectric Network Microwarp Drive LRC Armor LRC Matter Compressor Core Regenerator Sigix Sheargun Sigix Shearcannon Subatomic Replicator Achievements -------------- None Challenges ------------ None Game ------ Seed HypervelocityFluxCleaver Manual? 0 Play Time 04:54:06 Cumulative 1563.9 hours Start 2022.08.04 @ 16:28:03 End 2022.08.05 @ 01:45:05 Sessions 3 Manual Loads 0 Difficulty Rogue Special Mode None Game No. 548 Rogue 548 Adventurer 0 Explorer 0 Win Type - Total 112 Types 25/12/45/6/1/2/19/1/1 Lore% 97 Gallery% 97 Achievement% 86 Wizard Run 0 Options --------- ASCII 0 Keyboard 0 Movement Numpad Keybinds 0 Fullscreen 1 Font 18/SmallcapsGlow Map View 76x50 Tactical HUD 1 Map Filters NONE Filters NONE Steam 1 RUN: c64ef482-a6cf-485b-823e-caedd1c9fae9